Workbook

Sheet Pasos del software
E2: Pasos para la aplicación del AHP a los riesgos en Proyectos
A8: * | B8: Para el correcto uso de esta aplicacion se sugiere contraer la cinta de opciones:
A13: 1) | B13: Presionar para el inicio del proyecto:
A15: 2) | B15: Comienzo de la encuesta de Criterios:
A17: 3) | B17: Comienzo de la encuesta de Alternativas con respecto a los crierios: | H17: "Alternativas en base al criterio x"
B19: a) | E19: d)
B21: b) | E21: e)
B23: c) | E23: f)
A26: 4) | B26: Al terminar las encuestas se obtienen a los pesos de los criterios y las prioridades de las alternativas

Sheet Analisis
A1: Aplicación de la tecnica AHP a Proyectos
E5: 1. (Presionar "Inicio del Proyecto")
N7: Estructura Jerárquica
A8: Nombre | D8: Destinos Erasmus
A9: Número de Criterios | D9: 3
A10: Número de Alternativas | D10: 3
N11: =+D8 -> Destinos Erasmus | AG11: 1
C12: 2. Definir los Criterios | E12: 3. Definir las Alternativas | AG12: 3
AG13: 5
AG14: 7
AG15: 9
C16: Nombre de Criterios | E16: Nombre de Alternativas | L16: =+IF(C22<>"",C22,"") ->  | O16: =+IF(C20<>"",C18,"") -> Formación | R16: =IF(C18="","",IF(C20="",C18,C19)) -> Costo de Vida | U16: =IF(C19="","",IF(C20="",C19,C20)) -> Ocio | X16: =+IF(C21<>"",C21,"") ->  | AA16: =+IF(G23=6,C23,"") ->  | AG16: 2
AG17: 4
B18: 1 | C18: Formación | E18: Munchen | G18: =+IF(C18="","",1) -> 1 | H18: =+IF(E18="","",1) -> 1 | AG18: 6
B19: 2 | C19: Costo de Vida | E19: London | G19: =+IF(C19="","",2) -> 2 | H19: =+IF(E19="","",2) -> 2 | AG19: 8
B20: 3 | C20: Ocio | E20: Praga | G20: =+IF(C20="","",3) -> 3 | H20: =+IF(E20="","",3) -> 3
B21: 4 | G21: =+IF(C21="","",4) ->  | H21: =+IF(E21="","",4) ->  | M21: =+IF(H22=5,E22,"") ->  | P21: =+IF(E20<>"",E18,"") -> Munchen | S21: =IF(E18="","",IF(E20="",E18,E19)) -> London | V21: =IF(E19="","",IF(E20="",E19,E20)) -> Praga | Y21: =+IF(H21=4,E21,"") -> 
B22: 5 | G22: =+IF(C22="","",5) ->  | H22: =+IF(E22="","",5) -> 
B23: 6 | G23: =+IF(C23="","",6) -> 
C26: 4. Fin de la primera parte
A37: Resultados
A42: Pesos de Criterios
A45: Prioridades Locales
D48: Métodos
D49: Aproximado | E49: Exacto | J49: Nombres | K49: Criterios
B50: =+IF(Analisis!C18="","",Analisis!C18) -> Formación | D50: =+'Calculo de los criterios'!S9 -> 0.7235060572 | E50: =+'Calculo de los criterios'!V29 -> 0.7306446714 | J50: =+B50 -> Formación | K50: =+D50 -> 0.7235060572
B51: =+IF(Analisis!C19="","",Analisis!C19) -> Costo de Vida | D51: =+'Calculo de los criterios'!S10 -> 0.1931860599 | E51: =+'Calculo de los criterios'!V30 -> 0.1883940966 | J51: =+B51 -> Costo de Vida | K51: =+D51 -> 0.1931860599
B52: =+IF(Analisis!C20="","",Analisis!C20) -> Ocio | D52: =+'Calculo de los criterios'!S11 -> 0.08330788286 | E52: =+'Calculo de los criterios'!V31 -> 0.080961232 | J52: Ocio | K52: 0.08330788286
B53: =+IF(Analisis!C21="","",Analisis!C21) ->  | D53: =+'Calculo de los criterios'!S12 ->  | E53: =+'Calculo de los criterios'!V32 -> 
B54: =+IF(Analisis!C22="","",Analisis!C22) ->  | D54: =+'Calculo de los criterios'!S13 ->  | E54: =+'Calculo de los criterios'!V33 -> 
B55: =+IF(Analisis!C23="","",Analisis!C23) ->  | D55: =+'Calculo de los criterios'!S14 ->  | E55: =+'Calculo de los criterios'!V34 ->  | F55: =+D55 -> 
A57: Consistencia según los métodos
A59: Consistencia de la Matriz | D59: Aproximado | E59: =+'Calculo de los criterios'!X9 -> 0.1071766357 | F59: =+'Calculo de los criterios'!Z9 -> La matriz es inconsistente, se debe volver a evaluar
D60: Exacto | E60: =+'Calculo de los criterios'!AB30 -> 0.06239188232 | F60: =+'Calculo de los criterios'!AD29 -> La matriz es consistente
G62: (Presionar para tener el valor Exacto)
A64: Prioridades de Alternativas
A67: Prioridades Locales: | D67: Comparacion de todas las alternativas respecto a cada criterio
D70: Métodos | J70: Métodos | T70: =+J70 -> Métodos
B71: =+IF(Analisis!C18="","",Analisis!C18) -> Formación | D71: Aproximado | E71: Exacto | H71: =+IF(Analisis!C19="","",Analisis!C19) -> Costo de Vida | J71: Aproximado | K71: Exacto | P71: =+IF(Analisis!C20="","",Analisis!C20) -> Ocio | T71: =+J71 -> Aproximado | V71: =+K71 -> Exacto
B72: =+IF(Analisis!$E$18="","",Analisis!$E$18) -> Munchen | D72: =+'Calculo de los criterios'!R46 -> 0.08532439782 | E72: =+'Calculo de los criterios'!T65 -> 0.08414414848 | H72: =+IF(Analisis!$E$18="","",Analisis!$E$18) -> Munchen | J72: =+'Calculo de los criterios'!R77 -> 0.2505925447 | K72: =+'Calculo de los criterios'!T96 -> 0.2499474177 | P72: =+IF(Analisis!$E$18="","",Analisis!$E$18) -> Munchen | T72: =+'Calculo de los criterios'!R108 -> 0.6555450137 | V72: =+'Calculo de los criterios'!T127 -> 0.6586299656
B73: =+IF(Analisis!$E$19="","",Analisis!$E$19) -> London | D73: =+'Calculo de los criterios'!R47 -> 0.2132381507 | E73: =+'Calculo de los criterios'!T66 -> 0.2109198429 | H73: =+IF(Analisis!$E$19="","",Analisis!$E$19) -> London | J73: =+'Calculo de los criterios'!R78 -> 0.6803490627 | K73: =+'Calculo de los criterios'!T97 -> 0.6812768998 | P73: =+IF(Analisis!$E$19="","",Analisis!$E$19) -> London | T73: =+'Calculo de los criterios'!R109 -> 0.07964368543 | V73: =+'Calculo de los criterios'!T128 -> 0.07861686302
B74: =+IF(Analisis!$E$20="","",Analisis!$E$20) -> Praga | D74: =+'Calculo de los criterios'!R48 -> 0.7014374514 | E74: =+'Calculo de los criterios'!T67 -> 0.7049360086 | H74: =+IF(Analisis!$E$20="","",Analisis!$E$20) -> Praga | J74: =+'Calculo de los criterios'!R79 -> 0.06905839259 | K74: =+'Calculo de los criterios'!T98 -> 0.06877568245 | P74: =+IF(Analisis!$E$20="","",Analisis!$E$20) -> Praga | T74: =+'Calculo de los criterios'!R110 -> 0.2648113009 | V74: =+'Calculo de los criterios'!T129 -> 0.2627531713
B75: =+IF(Analisis!$E$21="","",Analisis!$E$21) ->  | D75: =+'Calculo de los criterios'!R49 ->  | E75: =+'Calculo de los criterios'!T68 ->  | H75: =+IF(Analisis!$E$21="","",Analisis!$E$21) ->  | J75: =+'Calculo de los criterios'!R80 ->  | K75: =+'Calculo de los criterios'!T99 ->  | P75: =+IF(Analisis!$E$21="","",Analisis!$E$21) ->  | T75: =+'Calculo de los criterios'!R111 ->  | V75: =+'Calculo de los criterios'!T130 -> 
B76: =+IF(Analisis!$E$22="","",Analisis!$E$22) ->  | D76: =+'Calculo de los criterios'!R50 ->  | E76: =+'Calculo de los criterios'!T69 ->  | H76: =+IF(Analisis!$E$22="","",Analisis!$E$22) ->  | J76: =+'Calculo de los criterios'!R81 ->  | K76: =+'Calculo de los criterios'!T100 ->  | P76: =+IF(Analisis!$E$22="","",Analisis!$E$22) ->  | T76: =+'Calculo de los criterios'!R112 ->  | V76: =+'Calculo de los criterios'!T131 -> 
B78: Aproximado | C78: =+'Calculo de los criterios'!W47 -> 0.05080834408 | D78: =+'Calculo de los criterios'!Y47 -> La matriz es consistente | H78: Aproximado | I78: =+'Calculo de los criterios'!W78 -> 0.01400214918 | J78: =+'Calculo de los criterios'!Y78 -> La matriz es consistente | P78: Aproximado | R78: =+'Calculo de los criterios'!W109 -> 0.0470014998 | T78: =+'Calculo de los criterios'!Y109 -> La matriz es consistente
B79: Exacto | C79: =+'Calculo de los criterios'!Y64 -> 0.0311216856 | D79: =+'Calculo de los criterios'!AA63 -> La matriz es consistente | H79: Exacto | I79: =+'Calculo de los criterios'!Y95 -> 0.008848741203 | J79: =+'Calculo de los criterios'!AA94 -> La matriz es consistente | P79: =+V71 -> Exacto | R79: =+'Calculo de los criterios'!Y126 -> 0.0311216856 | T79: =+'Calculo de los criterios'!AA125 -> La matriz es consistente
D81: (Presionar para tener el valor Exacto) | J81: (Presionar para tener el valor Exacto) | T81: (Presionar para tener el valor Exacto)
D84: Métodos | J84: Métodos | T84: =+J84 -> Métodos
B85: =+IF(Analisis!C21="","",Analisis!C21) ->  | D85: Aproximado | E85: Exacto | H85: =+IF(Analisis!C22="","",Analisis!C22) ->  | J85: Aproximado | K85: Exacto | P85: =+IF(Analisis!C23="","",Analisis!C23) ->  | T85: =+J85 -> Aproximado | V85: =+K85 -> Exacto
B86: =+IF(Analisis!$E$18="","",Analisis!$E$18) -> Munchen | D86: =+'Calculo de los criterios'!R139 ->  | E86: =+'Calculo de los criterios'!T158 ->  | H86: =+IF(Analisis!$E$18="","",Analisis!$E$18) -> Munchen | J86: =+'Calculo de los criterios'!R170 ->  | K86: =+'Calculo de los criterios'!T189 ->  | P86: =+IF(Analisis!$E$18="","",Analisis!$E$18) -> Munchen | T86: =+'Calculo de los criterios'!R201 ->  | V86: =+'Calculo de los criterios'!T220 -> 
B87: =+IF(Analisis!$E$19="","",Analisis!$E$19) -> London | D87: =+'Calculo de los criterios'!R140 ->  | E87: =+'Calculo de los criterios'!T159 ->  | H87: =+IF(Analisis!$E$19="","",Analisis!$E$19) -> London | J87: =+'Calculo de los criterios'!R171 ->  | K87: =+'Calculo de los criterios'!T190 ->  | P87: =+IF(Analisis!$E$19="","",Analisis!$E$19) -> London | T87: =+'Calculo de los criterios'!R202 ->  | V87: =+'Calculo de los criterios'!T221 -> 
B88: =+IF(Analisis!$E$20="","",Analisis!$E$20) -> Praga | D88: =+'Calculo de los criterios'!R141 ->  | E88: =+'Calculo de los criterios'!T160 ->  | H88: =+IF(Analisis!$E$20="","",Analisis!$E$20) -> Praga | J88: =+'Calculo de los criterios'!R172 ->  | K88: =+'Calculo de los criterios'!T191 ->  | P88: =+IF(Analisis!$E$20="","",Analisis!$E$20) -> Praga | T88: =+'Calculo de los criterios'!R203 ->  | V88: =+'Calculo de los criterios'!T222 -> 
B89: =+IF(Analisis!$E$21="","",Analisis!$E$21) ->  | D89: =+'Calculo de los criterios'!R142 ->  | E89: =+'Calculo de los criterios'!T161 ->  | H89: =+IF(Analisis!$E$21="","",Analisis!$E$21) ->  | J89: =+'Calculo de los criterios'!R173 ->  | K89: =+'Calculo de los criterios'!T192 ->  | P89: =+IF(Analisis!$E$21="","",Analisis!$E$21) ->  | T89: =+'Calculo de los criterios'!R204 ->  | V89: =+'Calculo de los criterios'!T223 -> 
B90: =+IF(Analisis!$E$22="","",Analisis!$E$22) ->  | D90: =+'Calculo de los criterios'!R143 ->  | E90: =+'Calculo de los criterios'!T162 ->  | H90: =+IF(Analisis!$E$22="","",Analisis!$E$22) ->  | J90: =+'Calculo de los criterios'!R174 ->  | K90: =+'Calculo de los criterios'!T193 ->  | P90: =+IF(Analisis!$E$22="","",Analisis!$E$22) ->  | T90: =+'Calculo de los criterios'!R205 ->  | V90: =+'Calculo de los criterios'!T224 -> 
B92: Aproximado | C92: =+'Calculo de los criterios'!W140 -> 0 | D92: =+'Calculo de los criterios'!Y140 ->  | H92: Aproximado | I92: =+'Calculo de los criterios'!W171 -> 0 | J92: =+'Calculo de los criterios'!Y171 ->  | P92: Aproximado | R92: =+'Calculo de los criterios'!W202 -> 0 | T92: =+'Calculo de los criterios'!Y202 -> 
B93: Exacto | C93: =+'Calculo de los criterios'!Y157 -> 0 | D93: =+'Calculo de los criterios'!AA156 ->  | H93: Exacto | I93: =+'Calculo de los criterios'!Y188 -> 0 | J93: =+'Calculo de los criterios'!AA187 ->  | P93: =+V85 -> Exacto | R93: =+'Calculo de los criterios'!Y219 -> 0 | T93: =+'Calculo de los criterios'!AA218 -> 
D95: (Presionar para tener el valor Exacto) | J95: (Presionar para tener el valor Exacto) | T95: (Presionar para tener el valor Exacto)
A97: Alternativas
A100: Prioridades Globales
D102: Método Aproximado | O102: Método Exacto
C104: =+$B$50 -> Formación | D104: =+$B$51 -> Costo de Vida | E104: =+$B$52 -> Ocio | F104: =+$B$53 ->  | G104: =+$B$54 ->  | H104: =+$B$55 ->  | I104: Overall | M104: =+C104 -> Formación | O104: =+D104 -> Costo de Vida | Q104: =+E104 -> Ocio | S104: =+F104 ->  | U104: =+G104 ->  | W104: =+H104 ->  | Y104: Overall
C105: =+D50 -> 0.7235060572 | D105: =+D51 -> 0.1931860599 | E105: =+D52 -> 0.08330788286 | F105: =+D53 ->  | G105: =+D54 ->  | H105: =+D55 ->  | M105: =+E50 -> 0.7306446714 | O105: =+E51 -> 0.1883940966 | Q105: =+E52 -> 0.080961232 | S105: =+E53 ->  | U105: =+E54 ->  | W105: =+E55 -> 
B106: =+IF(Analisis!$E$18="","",Analisis!$E$18) -> Munchen | C106: =+D72 -> 0.08532439782 | D106: =+J72 -> 0.2505925447 | E106: =+T72 -> 0.6555450137 | F106: =+D86 ->  | G106: =+J86 ->  | H106: =+T86 ->  | I106: =+IF(SUMPRODUCT($C$105:$H$105,C106:H106)=0,"",SUMPRODUCT($C$105:$H$105,C106:H106)) -> 0.1647557722 | K106: =+IF(Analisis!$E$18="","",Analisis!$E$18) -> Munchen | M106: =+E72 -> 0.08414414848 | O106: =+K72 -> 0.2499474177 | Q106: =+V72 -> 0.6586299656 | S106: =+E86 ->  | U106: =+K86 ->  | W106: =+V86 ->  | Y106: =+IF(SUMPRODUCT($M$105:$X$105,M106:X106)=0,"",SUMPRODUCT($M$105:$X$105,M106:X106)) -> 0.1618915851
B107: =+IF(Analisis!$E$19="","",Analisis!$E$19) -> London | C107: =+D73 -> 0.2132381507 | D107: =+J73 -> 0.6803490627 | E107: =+T73 -> 0.07964368543 | F107: =+D87 ->  | G107: =+J87 ->  | H107: =+T87 ->  | I107: =+IF(SUMPRODUCT($C$105:$H$105,C107:H107)=0,"",SUMPRODUCT($C$105:$H$105,C107:H107)) -> 0.2923479953 | K107: =+IF(Analisis!$E$19="","",Analisis!$E$19) -> London | M107: =+E73 -> 0.2109198429 | O107: =+K73 -> 0.6812768998 | Q107: =+V73 -> 0.07861686302 | S107: =+E87 ->  | U107: =+K87 ->  | W107: =+V87 ->  | Y107: =+IF(SUMPRODUCT($M$105:$X$105,M107:X107)=0,"",SUMPRODUCT($M$105:$X$105,M107:X107)) -> 0.2888209235
B108: =+IF(Analisis!$E$20="","",Analisis!$E$20) -> Praga | C108: =+D74 -> 0.7014374514 | D108: =+J74 -> 0.06905839259 | E108: =+T74 -> 0.2648113009 | F108: =+D88 ->  | G108: =+J88 ->  | H108: =+T88 ->  | I108: =+IF(SUMPRODUCT($C$105:$H$105,C108:H108)=0,"",SUMPRODUCT($C$105:$H$105,C108:H108)) -> 0.5428962325 | K108: =+IF(Analisis!$E$20="","",Analisis!$E$20) -> Praga | M108: =+E74 -> 0.7049360086 | O108: =+K74 -> 0.06877568245 | Q108: =+V74 -> 0.2627531713 | S108: =+E88 ->  | U108: =+K88 ->  | W108: =+V88 ->  | Y108: =+IF(SUMPRODUCT($M$105:$X$105,M108:X108)=0,"",SUMPRODUCT($M$105:$X$105,M108:X108)) -> 0.5492874914
B109: =+IF(Analisis!$E$21="","",Analisis!$E$21) ->  | C109: =+D75 ->  | D109: =+J75 ->  | E109: =+T75 ->  | F109: =+D89 ->  | G109: =+J89 ->  | H109: =+T89 ->  | I109: =+IF(SUMPRODUCT($C$105:$H$105,C109:H109)=0,"",SUMPRODUCT($C$105:$H$105,C109:H109)) ->  | K109: =+IF(Analisis!$E$21="","",Analisis!$E$21) ->  | M109: =+E75 ->  | O109: =+K75 ->  | Q109: =+V75 ->  | S109: =+E89 ->  | U109: =+K89 ->  | W109: =+V89 ->  | Y109: =+IF(SUMPRODUCT($M$105:$X$105,M109:X109)=0,"",SUMPRODUCT($M$105:$X$105,M109:X109)) -> 
B110: =+IF(Analisis!$E$22="","",Analisis!$E$22) ->  | C110: =+D76 ->  | D110: =+J76 ->  | E110: =+T76 ->  | F110: =+D90 ->  | G110: =+J90 ->  | H110: =+T90 ->  | I110: =+IF(SUMPRODUCT($C$105:$H$105,C110:H110)=0,"",SUMPRODUCT($C$105:$H$105,C110:H110)) ->  | K110: =+IF(Analisis!$E$22="","",Analisis!$E$22) ->  | M110: =+E76 ->  | O110: =+K76 ->  | Q110: =+V76 ->  | S110: =+E90 ->  | U110: =+K90 ->  | W110: =+V90 ->  | Y110: =+IF(SUMPRODUCT($M$105:$X$105,M110:X110)=0,"",SUMPRODUCT($M$105:$X$105,M110:X110)) -> 
D113: =+Analisis!D8 -> Destinos Erasmus | O113: =+D8 -> Destinos Erasmus
D114: =+IF(Analisis!$E$18="","",Analisis!$E$18) -> Munchen | E114: =+IF(SUMPRODUCT($C$105:$H$105,C106:H106)=0,"",SUMPRODUCT($C$105:$H$105,C106:H106)) -> 0.1647557722 | O114: =+IF(Analisis!$E$18="","",Analisis!$E$18) -> Munchen | Q114: =+IF(SUMPRODUCT($M$105:$X$105,M106:X106)=0,"",SUMPRODUCT($M$105:$X$105,M106:X106)) -> 0.1618915851
D115: =+IF(Analisis!$E$19="","",Analisis!$E$19) -> London | E115: =+IF(SUMPRODUCT($C$105:$H$105,C107:H107)=0,"",SUMPRODUCT($C$105:$H$105,C107:H107)) -> 0.2923479953 | O115: =+IF(Analisis!$E$19="","",Analisis!$E$19) -> London | Q115: =+IF(SUMPRODUCT($M$105:$X$105,M107:X107)=0,"",SUMPRODUCT($M$105:$X$105,M107:X107)) -> 0.2888209235
D116: =+IF(Analisis!$E$20="","",Analisis!$E$20) -> Praga | E116: =+IF(SUMPRODUCT($C$105:$H$105,C108:H108)=0,"",SUMPRODUCT($C$105:$H$105,C108:H108)) -> 0.5428962325 | O116: =+IF(Analisis!$E$20="","",Analisis!$E$20) -> Praga | Q116: =+IF(SUMPRODUCT($M$105:$X$105,M108:X108)=0,"",SUMPRODUCT($M$105:$X$105,M108:X108)) -> 0.5492874914
D117: =+IF(Analisis!$E$21="","",Analisis!$E$21) ->  | E117: =+IF(SUMPRODUCT($C$105:$H$105,C109:H109)=0,"",SUMPRODUCT($C$105:$H$105,C109:H109)) ->  | O117: =+IF(Analisis!$E$21="","",Analisis!$E$21) ->  | Q117: =+IF(SUMPRODUCT($M$105:$X$105,M109:X109)=0,"",SUMPRODUCT($M$105:$X$105,M109:X109)) -> 
D118: =+IF(Analisis!$E$22="","",Analisis!$E$22) ->  | E118: =+IF(SUMPRODUCT($C$105:$H$105,C110:H110)=0,"",SUMPRODUCT($C$105:$H$105,C110:H110)) ->  | O118: =+IF(Analisis!$E$22="","",Analisis!$E$22) ->  | Q118: =+IF(SUMPRODUCT($M$105:$X$105,M110:X110)=0,"",SUMPRODUCT($M$105:$X$105,M110:X110)) -> 
B123: Gráficos de resultados
C131: =+IF(Analisis!$E$18="","",Analisis!$E$18) -> Munchen | D131: =+IF(Analisis!$E$19="","",Analisis!$E$19) -> London | E131: =+IF(Analisis!$E$20="","",Analisis!$E$20) -> Praga | F131: =+IF(Analisis!$E$21="","",Analisis!$E$21) ->  | G131: =+IF(Analisis!$E$22="","",Analisis!$E$22) -> 
B132: =+$B$50 -> Formación | C132: =+IF(C106="","",C106) -> 0.08532439782 | D132: =+IF(C107="","",C107) -> 0.2132381507 | E132: =+IF(C108="","",C108) -> 0.7014374514 | F132: =+IF(C109="","",C109) ->  | G132: =+IF(C110="","",C110) -> 
B133: =+$B$51 -> Costo de Vida | C133: =+IF(D106="","",D106) -> 0.2505925447 | D133: =+IF(D107="","",D107) -> 0.6803490627 | E133: =+IF(D108="","",D108) -> 0.06905839259 | F133: =+IF(D109="","",D109) ->  | G133: =+IF(D110="","",D110) -> 
B134: =+$B$52 -> Ocio | C134: =+IF(E106="","",E106) -> 0.6555450137 | D134: =+IF(E107="","",E107) -> 0.07964368543 | E134: =+IF(E108="","",E108) -> 0.2648113009 | F134: =+IF(E109="","",E109) ->  | G134: =+IF(E110="","",E110) -> 
B135: =+$B$53 ->  | C135: =+IF(F106="","",F106) ->  | D135: =+IF(F107="","",F107) ->  | E135: =+IF(F108="","",F108) ->  | F135: =+IF(F109="","",F109) ->  | G135: =+IF(F110="","",F110) -> 
B136: =+$B$54 ->  | C136: =+IF(G106="","",G106) ->  | D136: =+IF(G107="","",G107) ->  | E136: =+IF(G108="","",G108) ->  | F136: =+IF(G109="","",G109) ->  | G136: =+IF(G110="","",G110) -> 
B137: =+$B$55 ->  | C137: =+IF(H106="","",H106) ->  | D137: =+IF(H107="","",H107) ->  | E137: =+IF(H108="","",H108) ->  | F137: =+IF(H109="","",H109) ->  | G137: =+IF(H110="","",H110) -> 
B138: Overall | C138: =+IF(I106="","",I106) -> 0.1647557722 | D138: =+IF(I107="","",I107) -> 0.2923479953 | E138: =+IF(I108="","",I108) -> 0.5428962325 | F138: =+IF(I109="","",I109) ->  | G138: =+IF(I110="","",I110) -> 
B139: Final | C139: =+C138 -> 0.1647557722 | D139: =+D138 -> 0.2923479953 | E139: =+E138 -> 0.5428962325 | F139: =+F138 ->  | G139: =+G138 -> 

Sheet Enc. de Criterios
A1: Encuestas
A4: Criterios
A6: Nota: | B6: En esta sección la evaluación sera tomando como referencia el primer criterio con respecto al segundo
A7: Ejemplo: | B7: Si el riesgo de que A es 3 veces mas importante que el riesgo de B, se colocara el valor de 3; si en cambio la relación es 1/3, se marcará la casilla de inversa.
B9: A vs B | E9: FALSE | G9: 3 | I9: =+IF(E9=FALSE,G9,1/G9) -> 3
A11: Relación de criterios | E11: Inverso de la relación | G11: Calificación
A12: =IF(Analisis!D9>=2,+CONCATENATE(Analisis!C18," ","vs"," ",Analisis!C19),"") -> Formación vs Costo de Vida | E12: FALSE | G12: 5 | I12: =+IF(A12="","",IF(E12=TRUE,G12,1/G12)) -> 0.2 | J12: =+IF(A12="","",1/I12) -> 5 | K12: =+IF(A12="","",CONCATENATE(Analisis!C18," es ",J12," veces más importante que ",Analisis!C19)) -> Formación es 5 veces más importante que Costo de Vida
A14: =IF(Analisis!D9>=3,+CONCATENATE(Analisis!C18," ","vs"," ",Analisis!C20),"") -> Formación vs Ocio | E14: FALSE | G14: 7 | I14: =+IF(A14="","",IF(E14=TRUE,G14,1/G14)) -> 0.1428571429 | J14: =+IF(A14="","",1/I14) -> 7 | K14: =+IF(A14="","",CONCATENATE(Analisis!C18," es ",J14," veces más importante que ",Analisis!C20)) -> Formación es 7 veces más importante que Ocio | S14: Intensidad de importancia | U14: Definición
A16: =IF(Analisis!D9>=3,+CONCATENATE(Analisis!C19," ","vs"," ",Analisis!C20),"") -> Costo de Vida vs Ocio | E16: FALSE | G16: 3 | I16: =+IF(A16="","",IF(E16=TRUE,G16,1/G16)) -> 0.3333333333 | J16: =+IF(A16="","",1/I16) -> 3 | K16: =+IF(A16="","",CONCATENATE(Analisis!C19," es ",J16," veces más importante que ",Analisis!C20)) -> Costo de Vida es 3 veces más importante que Ocio
A18: =IF(Analisis!D9>=4,+CONCATENATE(Analisis!C18," ","vs"," ",Analisis!C21),"") ->  | E18: FALSE | I18: =+IF(A18="","",IF(E18=TRUE,G18,1/G18)) ->  | J18: =+IF(A18="","",1/I18) ->  | K18: =+IF(A18="","",CONCATENATE(Analisis!C18," es ",J18," veces más importante que ",Analisis!C21)) ->  | S18: 1 | U18: IGUAL
A20: =IF(Analisis!D9>=4,+CONCATENATE(Analisis!C19," ","vs"," ",Analisis!C21),"") ->  | E20: FALSE | I20: =+IF(A20="","",IF(E20=TRUE,G20,1/G20)) ->  | J20: =+IF(A20="","",1/I20) ->  | K20: =+IF(A20="","",CONCATENATE(Analisis!C19," es ",J20," veces más importante que ",Analisis!C21)) ->  | S20: 3 | U20: MODERADO
A22: =IF(Analisis!D9>=4,+CONCATENATE(Analisis!C20," ","vs"," ",Analisis!C21),"") ->  | E22: FALSE | I22: =+IF(A22="","",IF(E22=TRUE,G22,1/G22)) ->  | J22: =+IF(A22="","",1/I22) ->  | K22: =+IF(A22="","",CONCATENATE(Analisis!C20," es ",J22," veces más importante que ",Analisis!C21)) ->  | S22: 5 | U22: FUERTE
A24: =IF(Analisis!D9>=5,+CONCATENATE(Analisis!C18," ","vs"," ",Analisis!C22),"") ->  | E24: FALSE | I24: =+IF(A24="","",IF(E24=TRUE,G24,1/G24)) ->  | J24: =+IF(A24="","",1/I24) ->  | K24: =+IF(A24="","",CONCATENATE(Analisis!C18," es ",J24," veces más importante que ",Analisis!C22)) ->  | S24: 7 | U24: MUY FUERTE
A26: =IF(Analisis!D9>=5,+CONCATENATE(Analisis!C19," ","vs"," ",Analisis!C22),"") ->  | E26: FALSE | I26: =+IF(A26="","",IF(E26=TRUE,G26,1/G26)) ->  | J26: =+IF(A26="","",1/I26) ->  | K26: =+IF(A26="","",CONCATENATE(Analisis!C19," es ",J26," veces más importante que ",Analisis!C22)) ->  | S26: 9 | U26: EXTREMA
A28: =IF(Analisis!D9>=5,+CONCATENATE(Analisis!C20," ","vs"," ",Analisis!C22),"") ->  | E28: FALSE | I28: =+IF(A28="","",IF(E28=TRUE,G28,1/G28)) ->  | J28: =+IF(A28="","",1/I28) ->  | K28: =+IF(A28="","",CONCATENATE(Analisis!C20," es ",J28," veces más importante que ",Analisis!C22)) ->  | S28: 2,4,6,8 | U28: Valores de Transición
A30: =IF(Analisis!D9>=5,+CONCATENATE(Analisis!C21," ","vs"," ",Analisis!C22),"") ->  | E30: FALSE | I30: =+IF(A30="","",IF(E30=TRUE,G30,1/G30)) ->  | J30: =+IF(A30="","",1/I30) ->  | K30: =+IF(A30="","",CONCATENATE(Analisis!C21," es ",J30," veces más importante que ",Analisis!C22)) -> 
A32: =IF(Analisis!D9>=6,+CONCATENATE(Analisis!C18," ","vs"," ",Analisis!C23),"") ->  | E32: FALSE | I32: =+IF(A32="","",IF(E32=TRUE,G32,1/G32)) ->  | J32: =+IF(A32="","",1/I32) ->  | K32: =+IF(A32="","",CONCATENATE(Analisis!C18," es ",J32," veces más importante que ",Analisis!C23)) -> 
A34: =IF(Analisis!D9>=6,+CONCATENATE(Analisis!C19," ","vs"," ",Analisis!C23),"") ->  | E34: FALSE | I34: =+IF(A34="","",IF(E34=TRUE,G34,1/G34)) ->  | J34: =+IF(A34="","",1/I34) ->  | K34: =+IF(A34="","",CONCATENATE(Analisis!C19," es ",J34," veces más importante que ",Analisis!C23)) -> 
A36: =IF(Analisis!D9>=6,+CONCATENATE(Analisis!C20," ","vs"," ",Analisis!C23),"") ->  | E36: FALSE | I36: =+IF(A36="","",IF(E36=TRUE,G36,1/G36)) ->  | J36: =+IF(A36="","",1/I36) ->  | K36: =+IF(A36="","",CONCATENATE(Analisis!C20," es ",J36," veces más importante que ",Analisis!C23)) -> 
A38: =IF(Analisis!D9>=6,+CONCATENATE(Analisis!C21," ","vs"," ",Analisis!C23),"") ->  | E38: FALSE | I38: =+IF(A38="","",IF(E38=TRUE,G38,1/G38)) ->  | J38: =+IF(A38="","",1/I38) ->  | K38: =+IF(A38="","",CONCATENATE(Analisis!C21," es ",J38," veces más importante que ",Analisis!C23)) -> 
A40: =IF(Analisis!D9>=6,+CONCATENATE(Analisis!C22," ","vs"," ",Analisis!C23),"") ->  | E40: FALSE | I40: =+IF(A40="","",IF(E40=TRUE,G40,1/G40)) ->  | J40: =+IF(A40="","",1/I40) ->  | K40: =+IF(A40="","",CONCATENATE(Analisis!C22," es ",J40," veces más importante que ",Analisis!C23)) -> 
B42: Antes de "limpiar", Borrar la celda G40 | J42: Finalizar la encuesta

Sheet Enc. de Alternativas
A1: Alternativas
A6: =+IF(Analisis!$D$9>=1,Analisis!C18,"") -> Formación | G6: "1"
A8: Nota: | B8: En esta sección la evaluación sera tomando como referencia la primera alternativa con respecto a la segunda
A9: Ejemplo: | B9: Si el riesgo de que A es 3 veces mas importante que el riesgo de B, se colocara el valor de 3; si en cambio la relación es 1/3, se marcará la casilla de inversa.
B11: A vs B | E11: FALSE | G11: 3 | I11: =+IF(E11=FALSE,G11,1/G11) -> 3
A13: Relacion de criterios | E13: Inverso de la relación | G13: Calificación
A14: =IF(A6="","",IF(Analisis!D10>=2,+CONCATENATE(Analisis!E18," ","vs"," ",Analisis!E19),"")) -> Munchen vs London | E14: FALSE | G14: 3 | I14: =+IF(A14="","",IF(E14=TRUE,G14,1/G14)) -> 0.3333333333 | J14: =+IF(A14="","",1/I14) -> 3 | K14: =+IF(A14="","",CONCATENATE(Analisis!$E$18," es ",J14," más importante que ",Analisis!$E$19)) -> Munchen es 3 más importante que London
A16: =IF(A6="","",IF(Analisis!D10>=3,+CONCATENATE(Analisis!E18," ","vs"," ",Analisis!E20),"")) -> Munchen vs Praga | E16: FALSE | G16: 7 | I16: =+IF(A16="","",IF(E16=TRUE,G16,1/G16)) -> 0.1428571429 | J16: =+IF(A16="","",1/I16) -> 7 | K16: =+IF(A16="","",CONCATENATE(Analisis!$E$18," es ",J16," más importante que ",Analisis!$E$20)) -> Munchen es 7 más importante que Praga | R16: Intensidad de importancia | T16: Definición
A18: =IF(A6="","",IF(Analisis!D10>=3,+CONCATENATE(Analisis!E19," ","vs"," ",Analisis!E20),"")) -> London vs Praga | E18: FALSE | G18: 4 | I18: =+IF(A18="","",IF(E18=TRUE,G18,1/G18)) -> 0.25 | J18: =+IF(A18="","",1/I18) -> 4 | K18: =+IF(A18="","",CONCATENATE(Analisis!$E$19," es ",J18," más importante que ",Analisis!$E$20)) -> London es 4 más importante que Praga
A20: =IF(A6="","",IF(Analisis!D10>=4,+CONCATENATE(Analisis!E18," ","vs"," ",Analisis!E21),"")) ->  | E20: FALSE | I20: =+IF(A20="","",IF(E20=TRUE,G20,1/G20)) ->  | J20: =+IF(A20="","",1/I20) ->  | K20: =+IF(A20="","",CONCATENATE(Analisis!$E$18," es ",J20," más importante que ",Analisis!$E$21)) ->  | R20: 1 | T20: IGUAL
A22: =IF(A6="","",IF(Analisis!D10>=4,+CONCATENATE(Analisis!E19," ","vs"," ",Analisis!E21),"")) ->  | E22: FALSE | I22: =+IF(A22="","",IF(E22=TRUE,G22,1/G22)) ->  | J22: =+IF(A22="","",1/I22) ->  | K22: =+IF(A22="","",CONCATENATE(Analisis!$E$19," es ",J22," más importante que ",Analisis!$E$21)) ->  | R22: 3 | T22: MODERADO
A24: =IF(A6="","",IF(Analisis!D10>=4,+CONCATENATE(Analisis!E20," ","vs"," ",Analisis!E21),"")) ->  | E24: FALSE | I24: =+IF(A24="","",IF(E24=TRUE,G24,1/G24)) ->  | J24: =+IF(A24="","",1/I24) ->  | K24: =+IF(A24="","",CONCATENATE(Analisis!$E$20," es ",J24," más importante que ",Analisis!$E$21)) ->  | R24: 5 | T24: FUERTE
A26: =IF(A6="","",IF(Analisis!D10>=5,+CONCATENATE(Analisis!E18," ","vs"," ",Analisis!E22),"")) ->  | E26: FALSE | I26: =+IF(A26="","",IF(E26=TRUE,G26,1/G26)) ->  | J26: =+IF(A26="","",1/I26) ->  | K26: =+IF(A26="","",CONCATENATE(Analisis!$E$18," es ",J26," más importante que ",Analisis!$E$22)) ->  | R26: 7 | T26: MUY FUERTE
A28: =IF(A6="","",IF(Analisis!D10>=5,+CONCATENATE(Analisis!E19," ","vs"," ",Analisis!E22),"")) ->  | E28: FALSE | I28: =+IF(A28="","",IF(E28=TRUE,G28,1/G28)) ->  | J28: =+IF(A28="","",1/I28) ->  | K28: =+IF(A28="","",CONCATENATE(Analisis!$E$19," es ",J28," más importante que ",Analisis!$E$22)) ->  | R28: 9 | T28: EXTREMA
A30: =IF(A6="","",IF(Analisis!D10>=5,+CONCATENATE(Analisis!E20," ","vs"," ",Analisis!E22),"")) ->  | E30: FALSE | I30: =+IF(A30="","",IF(E30=TRUE,G30,1/G30)) ->  | J30: =+IF(A30="","",1/I30) ->  | K30: =+IF(A30="","",CONCATENATE(Analisis!$E$20," es ",J30," más importante que ",Analisis!$E$22)) ->  | R30: 2,4,6,8 | T30: Valores de Transición
A32: =IF(A6="","",IF(Analisis!D10>=5,+CONCATENATE(Analisis!E21," ","vs"," ",Analisis!E22),"")) ->  | E32: FALSE | I32: =+IF(A32="","",IF(E32=TRUE,G32,1/G32)) ->  | J32: =+IF(A32="","",1/I32) ->  | K32: =+IF(A32="","",CONCATENATE(Analisis!$E$21," es ",J32," más importante que ",Analisis!$E$22)) -> 
C34: Antes de "limpiar", Borrar la celda G32 | J34: Finalizar la encuesta
A39: Alternativas
A42: Para:
A44: =+IF(Analisis!$D$9>=2,Analisis!C19,"") -> Costo de Vida | G44: "2"
A46: Nota: | B46: En esta sección la evaluación sera tomando como referencia la primera alternativa con respecto a la segunda
A47: Ejemplo: | B47: Si el riesgo de que A es 3 veces mas importante que el riesgo de B, se colocara el valor de 3; si en cambio la relación es 1/3, se marcará la casilla de inversa.
B49: A vs B | E49: FALSE | G49: 3 | I49: =+IF(E49=FALSE,G49,1/G49) -> 3
A51: Relacion de criterios | E51: Inverso de la relación | G51: Calificación
A52: =IF(A44="","",IF(Analisis!D10>=2,+CONCATENATE(Analisis!E18," ","vs"," ",Analisis!E19),"")) -> Munchen vs London | E52: FALSE | G52: 3 | I52: =+IF(A52="","",IF(E52=TRUE,G52,1/G52)) -> 0.3333333333 | J52: =+IF(A52="","",1/I52) -> 3 | K52: =+IF(A52="","",CONCATENATE(Analisis!$E$18," es ",J52," veces más importante que ",Analisis!$E$19)) -> Munchen es 3 veces más importante que London
A54: =IF(A44="","",IF(Analisis!D10>=3,+CONCATENATE(Analisis!E18," ","vs"," ",Analisis!E20),"")) -> Munchen vs Praga | E54: TRUE | G54: 4 | I54: =+IF(A54="","",IF(E54=TRUE,G54,1/G54)) -> 4 | J54: =+IF(A54="","",1/I54) -> 0.25 | K54: =+IF(A54="","",CONCATENATE(Analisis!$E$18," es ",J54," veces más importante que ",Analisis!$E$20)) -> Munchen es 0,25 veces más importante que Praga | R54: Intensidad de importancia | T54: Definición
A56: =IF(A44="","",IF(Analisis!D10>=3,+CONCATENATE(Analisis!E19," ","vs"," ",Analisis!E20),"")) -> London vs Praga | E56: TRUE | G56: 9 | I56: =+IF(A56="","",IF(E56=TRUE,G56,1/G56)) -> 9 | J56: =+IF(A56="","",1/I56) -> 0.1111111111 | K56: =+IF(A56="","",CONCATENATE(Analisis!$E$19," es ",J56," veces más importante que ",Analisis!$E$20)) -> London es 0,111111111111111 veces más importante que Praga
A58: =IF(A44="","",IF(Analisis!D10>=4,+CONCATENATE(Analisis!E18," ","vs"," ",Analisis!E21),"")) ->  | E58: FALSE | I58: =+IF(A58="","",IF(E58=TRUE,G58,1/G58)) ->  | J58: =+IF(A58="","",1/I58) ->  | K58: =+IF(A58="","",CONCATENATE(Analisis!$E$18," es ",J58," veces más importante que ",Analisis!$E$21)) ->  | R58: 1 | T58: IGUAL
A60: =IF(A44="","",IF(Analisis!D10>=4,+CONCATENATE(Analisis!E19," ","vs"," ",Analisis!E21),"")) ->  | E60: FALSE | I60: =+IF(A60="","",IF(E60=TRUE,G60,1/G60)) ->  | J60: =+IF(A60="","",1/I60) ->  | K60: =+IF(A60="","",CONCATENATE(Analisis!$E$19," es ",J60," veces más importante que ",Analisis!$E$21)) ->  | R60: 3 | T60: MODERADO
A62: =IF(A44="","",IF(Analisis!D10>=4,+CONCATENATE(Analisis!E20," ","vs"," ",Analisis!E21),"")) ->  | E62: FALSE | I62: =+IF(A62="","",IF(E62=TRUE,G62,1/G62)) ->  | J62: =+IF(A62="","",1/I62) ->  | K62: =+IF(A62="","",CONCATENATE(Analisis!$E$20," es ",J62," veces más importante que ",Analisis!$E$21)) ->  | R62: 5 | T62: FUERTE
A64: =IF(A44="","",IF(Analisis!D10>=5,+CONCATENATE(Analisis!E18," ","vs"," ",Analisis!E22),"")) ->  | E64: FALSE | I64: =+IF(A64="","",IF(E64=TRUE,G64,1/G64)) ->  | J64: =+IF(A64="","",1/I64) ->  | K64: =+IF(A64="","",CONCATENATE(Analisis!$E$18," es ",J64," veces más importante que ",Analisis!$E$22)) ->  | R64: 7 | T64: MUY FUERTE
A66: =IF(A44="","",IF(Analisis!D10>=5,+CONCATENATE(Analisis!E19," ","vs"," ",Analisis!E22),"")) ->  | E66: FALSE | I66: =+IF(A66="","",IF(E66=TRUE,G66,1/G66)) ->  | J66: =+IF(A66="","",1/I66) ->  | K66: =+IF(A66="","",CONCATENATE(Analisis!$E$19," es ",J66," veces más importante que ",Analisis!$E$22)) ->  | R66: 9 | T66: EXTREMA
A68: =IF(A44="","",IF(Analisis!D10>=5,+CONCATENATE(Analisis!E20," ","vs"," ",Analisis!E22),"")) ->  | E68: FALSE | I68: =+IF(A68="","",IF(E68=TRUE,G68,1/G68)) ->  | J68: =+IF(A68="","",1/I68) ->  | K68: =+IF(A68="","",CONCATENATE(Analisis!$E$20," es ",J68," veces más importante que ",Analisis!$E$22)) ->  | R68: 2,4,6,8 | T68: Valores de Transición
A70: =IF(A44="","",IF(Analisis!D10>=5,+CONCATENATE(Analisis!E21," ","vs"," ",Analisis!E22),"")) ->  | E70: FALSE | I70: =+IF(A70="","",IF(E70=TRUE,G70,1/G70)) ->  | J70: =+IF(A70="","",1/I70) ->  | K70: =+IF(A70="","",CONCATENATE(Analisis!$E$21," es ",J70," veces más importante que ",Analisis!$E$22)) -> 
C72: Antes de "limpiar", Borrar la celda G70 | J72: Finalizar la encuesta
A78: Alternativas
A83: =+IF(Analisis!$D$9>=3,Analisis!C20,"") -> Ocio | G83: "3"
A85: Nota: | B85: En esta sección la evaluación sera tomando como referencia la primera alternativa con respecto a la segunda
A86: Ejemplo: | B86: Si el riesgo de que A es 3 veces mas importante que el riesgo de B, se colocara el valor de 3; si en cambio la relación es 1/3, se marcará la casilla de inversa.
B88: A vs B | E88: FALSE | G88: 3 | I88: =+IF(E88=FALSE,G88,1/G88) -> 3
A90: Relacion de criterios | E90: Inverso de la relación | G90: Calificación
A91: =IF(A83="","",IF(Analisis!D10>=2,+CONCATENATE(Analisis!E18," ","vs"," ",Analisis!E19),"")) -> Munchen vs London | E91: TRUE | G91: 7 | I91: =+IF(A91="","",IF(E91=TRUE,G91,1/G91)) -> 7 | J91: =+IF(A91="","",1/I91) -> 0.1428571429 | K91: =+IF(A91="","",CONCATENATE(Analisis!$E$18," es ",J91," veces más importante que ",Analisis!$E$19)) -> Munchen es 0,142857142857143 veces más importante que London
A93: =IF(A83="","",IF(Analisis!D10>=3,+CONCATENATE(Analisis!E18," ","vs"," ",Analisis!E20),"")) -> Munchen vs Praga | E93: TRUE | G93: 3 | I93: =+IF(A93="","",IF(E93=TRUE,G93,1/G93)) -> 3 | J93: =+IF(A93="","",1/I93) -> 0.3333333333 | K93: =+IF(A93="","",CONCATENATE(Analisis!$E$18," es ",J93," veces más importante que ",Analisis!$E$20)) -> Munchen es 0,333333333333333 veces más importante que Praga | R93: Intensidad de importancia | T93: Definición
A95: =IF(A83="","",IF(Analisis!D10>=3,+CONCATENATE(Analisis!E19," ","vs"," ",Analisis!E20),"")) -> London vs Praga | E95: FALSE | G95: 4 | I95: =+IF(A95="","",IF(E95=TRUE,G95,1/G95)) -> 0.25 | J95: =+IF(A95="","",1/I95) -> 4 | K95: =+IF(A95="","",CONCATENATE(Analisis!$E$19," es ",J95," veces más importante que ",Analisis!$E$20)) -> London es 4 veces más importante que Praga
A97: =IF(A83="","",IF(Analisis!D10>=4,+CONCATENATE(Analisis!E18," ","vs"," ",Analisis!E21),"")) ->  | E97: FALSE | I97: =+IF(A97="","",IF(E97=TRUE,G97,1/G97)) ->  | J97: =+IF(A97="","",1/I97) ->  | K97: =+IF(A97="","",CONCATENATE(Analisis!$E$18," es ",J97," veces más importante que ",Analisis!$E$21)) ->  | R97: 1 | T97: IGUAL
A99: =+IF(A83="","",IF(Analisis!D10>=4,+CONCATENATE(Analisis!E19," ","vs"," ",Analisis!E21),"")) ->  | E99: FALSE | I99: =+IF(A99="","",IF(E99=TRUE,G99,1/G99)) ->  | J99: =+IF(A99="","",1/I99) ->  | K99: =+IF(A99="","",CONCATENATE(Analisis!$E$19," es ",J99," veces más importante que ",Analisis!$E$21)) ->  | R99: 3 | T99: MODERADO
A101: =+IF(A83="","",IF(Analisis!D10>=4,+CONCATENATE(Analisis!E20," ","vs"," ",Analisis!E21),"")) ->  | E101: FALSE | I101: =+IF(A101="","",IF(E101=TRUE,G101,1/G101)) ->  | J101: =+IF(A101="","",1/I101) ->  | K101: =+IF(A101="","",CONCATENATE(Analisis!$E$20," es ",J101," veces más importante que ",Analisis!$E$21)) ->  | R101: 5 | T101: FUERTE
A103: =+IF(A83="","",IF(Analisis!D10>=5,+CONCATENATE(Analisis!E18," ","vs"," ",Analisis!E22),"")) ->  | E103: FALSE | I103: =+IF(A103="","",IF(E103=TRUE,G103,1/G103)) ->  | J103: =+IF(A103="","",1/I103) ->  | K103: =+IF(A103="","",CONCATENATE(Analisis!$E$18," es ",J103," veces más importante que ",Analisis!$E$22)) ->  | R103: 7 | T103: MUY FUERTE
A105: =+IF(A83="","",IF(Analisis!D10>=5,+CONCATENATE(Analisis!E19," ","vs"," ",Analisis!E22),"")) ->  | E105: FALSE | I105: =+IF(A105="","",IF(E105=TRUE,G105,1/G105)) ->  | J105: =+IF(A105="","",1/I105) ->  | K105: =+IF(A105="","",CONCATENATE(Analisis!$E$19," es ",J105," veces más importante que ",Analisis!$E$22)) ->  | R105: 9 | T105: EXTREMA
A107: =+IF(A83="","",IF(Analisis!D10>=5,+CONCATENATE(Analisis!E20," ","vs"," ",Analisis!E22),"")) ->  | E107: FALSE | I107: =+IF(A107="","",IF(E107=TRUE,G107,1/G107)) ->  | J107: =+IF(A107="","",1/I107) ->  | K107: =+IF(A107="","",CONCATENATE(Analisis!$E$20," es ",J107," veces más importante que ",Analisis!$E$22)) ->  | R107: 2,4,6,8 | T107: Valores de Transición
A109: =+IF(A83="","",IF(Analisis!D10>=5,+CONCATENATE(Analisis!E21," ","vs"," ",Analisis!E22),"")) ->  | E109: FALSE | I109: =+IF(A109="","",IF(E109=TRUE,G109,1/G109)) ->  | J109: =+IF(A109="","",1/I109) ->  | K109: =+IF(A109="","",CONCATENATE(Analisis!$E$21," es ",J109," veces más importante que ",Analisis!$E$22)) -> 
C111: Antes de "limpiar", Borrar la celda G109 | J111: Finalizar la encuesta
A116: Alternativas
A121: =+IF(Analisis!$D$9>=4,Analisis!C21,"") ->  | G121: "4"
A123: Nota: | B123: En esta sección la evaluación sera tomando como referencia la primera alternativa con respecto a la segunda
A124: Ejemplo: | B124: Si el riesgo de que A es 3 veces mas importante que el riesgo de B, se colocara el valor de 3; si en cambio la relación es 1/3, se marcará la casilla de inversa.
B126: A vs B | E126: FALSE | G126: 3 | I126: =+IF(E126=FALSE,G126,1/G126) -> 3
A128: Relacion de criterios | E128: Inverso de la relación | G128: Calificación
A129: =+IF(A121="","",IF(Analisis!D10>=2,+CONCATENATE(Analisis!E18," ","vs"," ",Analisis!E19),"")) ->  | E129: TRUE | G129: 2 | I129: =+IF(A129="","",IF(E129=TRUE,G129,1/G129)) ->  | J129: =+IF(A129="","",1/I129) ->  | K129: =+IF(A129="","",CONCATENATE(Analisis!$E$18," es ",J129," veces más importante que ",Analisis!$E$19)) -> 
A131: =+IF(A121="","",IF(Analisis!D10>=3,+CONCATENATE(Analisis!E18," ","vs"," ",Analisis!E20),"")) ->  | E131: FALSE | G131: 4 | I131: =+IF(A131="","",IF(E131=TRUE,G131,1/G131)) ->  | J131: =+IF(A131="","",1/I131) ->  | K131: =+IF(A131="","",CONCATENATE(Analisis!$E$18," es ",J131," veces más importante que ",Analisis!$E$20)) ->  | R131: Intensidad de importancia | T131: Definición
A133: =+IF(A121="","",IF(Analisis!D10>=3,+CONCATENATE(Analisis!E19," ","vs"," ",Analisis!E20),"")) ->  | E133: FALSE | G133: 5 | I133: =+IF(A133="","",IF(E133=TRUE,G133,1/G133)) ->  | J133: =+IF(A133="","",1/I133) ->  | K133: =+IF(A133="","",CONCATENATE(Analisis!$E$19," es ",J133," veces más importante que ",Analisis!$E$20)) -> 
A135: =+IF(A121="","",IF(Analisis!D10>=4,+CONCATENATE(Analisis!E18," ","vs"," ",Analisis!E21),"")) ->  | E135: FALSE | I135: =+IF(A135="","",IF(E135=TRUE,G135,1/G135)) ->  | J135: =+IF(A135="","",1/I135) ->  | K135: =+IF(A135="","",CONCATENATE(Analisis!$E$18," es ",J135," veces más importante que ",Analisis!$E$21)) ->  | R135: 1 | T135: IGUAL
A137: =+IF(A121="","",IF(Analisis!D10>=4,+CONCATENATE(Analisis!E19," ","vs"," ",Analisis!E21),"")) ->  | E137: FALSE | I137: =+IF(A137="","",IF(E137=TRUE,G137,1/G137)) ->  | J137: =+IF(A137="","",1/I137) ->  | K137: =+IF(A137="","",CONCATENATE(Analisis!$E$19," es ",J137," veces más importante que ",Analisis!$E$21)) ->  | R137: 3 | T137: MODERADO
A139: =+IF(A121="","",IF(Analisis!D10>=4,+CONCATENATE(Analisis!E20," ","vs"," ",Analisis!E21),"")) ->  | E139: FALSE | I139: =+IF(A139="","",IF(E139=TRUE,G139,1/G139)) ->  | J139: =+IF(A139="","",1/I139) ->  | K139: =+IF(A139="","",CONCATENATE(Analisis!$E$20," es ",J139," veces más importante que ",Analisis!$E$21)) ->  | R139: 5 | T139: FUERTE
A141: =+IF(A121="","",IF(Analisis!D10>=5,+CONCATENATE(Analisis!E18," ","vs"," ",Analisis!E22),"")) ->  | E141: FALSE | I141: =+IF(A141="","",IF(E141=TRUE,G141,1/G141)) ->  | J141: =+IF(A141="","",1/I141) ->  | K141: =+IF(A141="","",CONCATENATE(Analisis!$E$18," es ",J141," veces más importante que ",Analisis!$E$22)) ->  | R141: 7 | T141: MUY FUERTE
A143: =+IF(A121="","",IF(Analisis!D10>=5,+CONCATENATE(Analisis!E19," ","vs"," ",Analisis!E22),"")) ->  | E143: FALSE | I143: =+IF(A143="","",IF(E143=TRUE,G143,1/G143)) ->  | J143: =+IF(A143="","",1/I143) ->  | K143: =+IF(A143="","",CONCATENATE(Analisis!$E$19," es ",J143," veces más importante que ",Analisis!$E$22)) ->  | R143: 9 | T143: EXTREMA
A145: =+IF(A121="","",IF(Analisis!D10>=5,+CONCATENATE(Analisis!E20," ","vs"," ",Analisis!E22),"")) ->  | E145: FALSE | I145: =+IF(A145="","",IF(E145=TRUE,G145,1/G145)) ->  | J145: =+IF(A145="","",1/I145) ->  | K145: =+IF(A145="","",CONCATENATE(Analisis!$E$20," es ",J145," veces más importante que ",Analisis!$E$22)) ->  | R145: 2,4,6,8 | T145: Valores de Transición
A147: =+IF(A121="","",IF(Analisis!D10>=5,+CONCATENATE(Analisis!E21," ","vs"," ",Analisis!E22),"")) ->  | E147: FALSE | I147: =+IF(A147="","",IF(E147=TRUE,G147,1/G147)) ->  | J147: =+IF(A147="","",1/I147) ->  | K147: =+IF(A147="","",CONCATENATE(Analisis!$E$21," es ",J147," veces más importante que ",Analisis!$E$22)) -> 
C149: Antes de "limpiar", Borrar la celda G147 | J149: Finalizar la encuesta
A157: Alternativas
A162: =+IF(Analisis!$D$9>=5,Analisis!C22,"") ->  | G162: "5"
A164: Nota: | B164: En esta sección la evaluación sera tomando como referencia la primera alternativa con respecto a la segunda
A165: Ejemplo: | B165: Si el riesgo de que A es 3 veces mas importante que el riesgo de B, se colocara el valor de 3; si en cambio la relación es 1/3, se marcará la casilla de inversa.
B167: A vs B | E167: FALSE | G167: 3 | I167: =+IF(E167=FALSE,G167,1/G167) -> 3
A169: Relacion de criterios | E169: Inverso de la relación | G169: Calificación
A170: =+IF(A162="","",IF(Analisis!$D$10>=2,+CONCATENATE(Analisis!$E$18," ","vs"," ",Analisis!$E$19),"")) ->  | E170: FALSE | I170: =+IF(A170="","",IF(E170=TRUE,G170,1/G170)) ->  | J170: =+IF(A170="","",1/I170) ->  | K170: =+IF(A170="","",CONCATENATE(Analisis!$E$18," es ",J170," veces más importante que ",Analisis!$E$19)) -> 
A172: =+IF(A162="","",IF(Analisis!$D$10>=3,+CONCATENATE(Analisis!$E$18," ","vs"," ",Analisis!$E$20),"")) ->  | E172: FALSE | I172: =+IF(A172="","",IF(E172=TRUE,G172,1/G172)) ->  | J172: =+IF(A172="","",1/I172) ->  | K172: =+IF(A172="","",CONCATENATE(Analisis!$E$18," es ",J172," veces más importante que ",Analisis!$E$20)) ->  | R172: Intensidad de importancia | T172: Definición
A174: =+IF(A162="","",IF(Analisis!$D$10>=3,+CONCATENATE(Analisis!$E$19," ","vs"," ",Analisis!$E$20),"")) ->  | E174: FALSE | I174: =+IF(A174="","",IF(E174=TRUE,G174,1/G174)) ->  | J174: =+IF(A174="","",1/I174) ->  | K174: =+IF(A174="","",CONCATENATE(Analisis!$E$19," es ",J174," veces más importante que ",Analisis!$E$20)) -> 
A176: =+IF(A162="","",IF(Analisis!$D$10>=4,+CONCATENATE(Analisis!$E$18," ","vs"," ",Analisis!$E$21),"")) ->  | E176: FALSE | I176: =+IF(A176="","",IF(E176=TRUE,G176,1/G176)) ->  | J176: =+IF(A176="","",1/I176) ->  | K176: =+IF(A176="","",CONCATENATE(Analisis!$E$18," es ",J176," veces más importante que ",Analisis!$E$21)) ->  | R176: 1 | T176: IGUAL
A178: =+IF(A162="","",IF(Analisis!$D$10>=4,+CONCATENATE(Analisis!$E$19," ","vs"," ",Analisis!$E$21),"")) ->  | E178: FALSE | I178: =+IF(A178="","",IF(E178=TRUE,G178,1/G178)) ->  | J178: =+IF(A178="","",1/I178) ->  | K178: =+IF(A178="","",CONCATENATE(Analisis!$E$19," es ",J178," veces más importante que ",Analisis!$E$21)) ->  | R178: 3 | T178: MODERADO
A180: =+IF(A162="","",IF(Analisis!$D$10>=4,+CONCATENATE(Analisis!$E$20," ","vs"," ",Analisis!$E$21),"")) ->  | E180: FALSE | I180: =+IF(A180="","",IF(E180=TRUE,G180,1/G180)) ->  | J180: =+IF(A180="","",1/I180) ->  | K180: =+IF(A180="","",CONCATENATE(Analisis!$E$20," es ",J180," veces más importante que ",Analisis!$E$21)) ->  | R180: 5 | T180: FUERTE
A182: =+IF(A162="","",IF(Analisis!$D$10>=5,+CONCATENATE(Analisis!$E$18," ","vs"," ",Analisis!$E$22),"")) ->  | E182: FALSE | I182: =+IF(A182="","",IF(E182=TRUE,G182,1/G182)) ->  | J182: =+IF(A182="","",1/I182) ->  | K182: =+IF(A182="","",CONCATENATE(Analisis!$E$18," es ",J182," veces más importante que ",Analisis!$E$22)) ->  | R182: 7 | T182: MUY FUERTE
A184: =+IF(A162="","",IF(Analisis!$D$10>=5,+CONCATENATE(Analisis!$E$19," ","vs"," ",Analisis!$E$22),"")) ->  | E184: FALSE | I184: =+IF(A184="","",IF(E184=TRUE,G184,1/G184)) ->  | J184: =+IF(A184="","",1/I184) ->  | K184: =+IF(A184="","",CONCATENATE(Analisis!$E$19," es ",J184," veces más importante que ",Analisis!$E$22)) ->  | R184: 9 | T184: EXTREMA
A186: =+IF(A162="","",IF(Analisis!$D$10>=5,+CONCATENATE(Analisis!$E$20," ","vs"," ",Analisis!$E$22),"")) ->  | E186: FALSE | I186: =+IF(A186="","",IF(E186=TRUE,G186,1/G186)) ->  | J186: =+IF(A186="","",1/I186) ->  | K186: =+IF(A186="","",CONCATENATE(Analisis!$E$20," es ",J186," veces más importante que ",Analisis!$E$22)) ->  | R186: 2,4,6,8 | T186: Valores de Transición
A188: =+IF(A162="","",IF(Analisis!$D$10>=5,+CONCATENATE(Analisis!$E$21," ","vs"," ",Analisis!$E$22),"")) ->  | E188: FALSE | I188: =+IF(A188="","",IF(E188=TRUE,G188,1/G188)) ->  | J188: =+IF(A188="","",1/I188) ->  | K188: =+IF(A188="","",CONCATENATE(Analisis!$E$21," es ",J188," veces más importante que ",Analisis!$E$22)) -> 
C190: Antes de "limpiar", Borrar la celda G188 | J190: Finalizar la encuesta
A196: Alternativas
A201: =+IF(Analisis!$D$9>=6,Analisis!C23,"") ->  | G201: "6"
A203: Nota: | B203: En esta sección la evaluación sera tomando como referencia la primera alternativa con respecto a la segunda
A204: Ejemplo: | B204: Si el riesgo de que A es 3 veces mas importante que el riesgo de B, se colocara el valor de 3; si en cambio la relación es 1/3, se marcará la casilla de inversa.
B206: A vs B | E206: FALSE | G206: 3 | I206: =+IF(E206=FALSE,G206,1/G206) -> 3
A208: Relacion de criterios | E208: Inverso de la relación | G208: Calificación
A209: =+IF(A201="","",IF(Analisis!$D$10>=2,+CONCATENATE(Analisis!$E$18," ","vs"," ",Analisis!$E$19),"")) ->  | E209: FALSE | I209: =+IF(A209="","",IF(E209=TRUE,G209,1/G209)) ->  | J209: =+IF(A209="","",1/I209) ->  | K209: =+IF(A209="","",CONCATENATE(Analisis!$E$18," es ",J209," veces más importante que ",Analisis!$E$19)) -> 
A211: =+IF(A201="","",IF(Analisis!$D$10>=3,+CONCATENATE(Analisis!$E$18," ","vs"," ",Analisis!$E$20),"")) ->  | E211: FALSE | I211: =+IF(A211="","",IF(E211=TRUE,G211,1/G211)) ->  | J211: =+IF(A211="","",1/I211) ->  | K211: =+IF(A211="","",CONCATENATE(Analisis!$E$18," es ",J211," veces más importante que ",Analisis!$E$20)) ->  | R211: Intensidad de importancia | T211: Definición
A213: =+IF(A201="","",IF(Analisis!$D$10>=3,+CONCATENATE(Analisis!$E$19," ","vs"," ",Analisis!$E$20),"")) ->  | E213: FALSE | I213: =+IF(A213="","",IF(E213=TRUE,G213,1/G213)) ->  | J213: =+IF(A213="","",1/I213) ->  | K213: =+IF(A213="","",CONCATENATE(Analisis!$E$19," es ",J213," veces más importante que ",Analisis!$E$20)) -> 
A215: =+IF(A201="","",IF(Analisis!$D$10>=4,+CONCATENATE(Analisis!$E$18," ","vs"," ",Analisis!$E$21),"")) ->  | E215: FALSE | I215: =+IF(A215="","",IF(E215=TRUE,G215,1/G215)) ->  | J215: =+IF(A215="","",1/I215) ->  | K215: =+IF(A215="","",CONCATENATE(Analisis!$E$18," es ",J215," veces más importante que ",Analisis!$E$21)) ->  | R215: 1 | T215: IGUAL
A217: =+IF(A201="","",IF(Analisis!$D$10>=4,+CONCATENATE(Analisis!$E$19," ","vs"," ",Analisis!$E$21),"")) ->  | E217: FALSE | I217: =+IF(A217="","",IF(E217=TRUE,G217,1/G217)) ->  | J217: =+IF(A217="","",1/I217) ->  | K217: =+IF(A217="","",CONCATENATE(Analisis!$E$19," es ",J217," veces más importante que ",Analisis!$E$21)) ->  | R217: 3 | T217: MODERADO
A219: =+IF(A201="","",IF(Analisis!$D$10>=4,+CONCATENATE(Analisis!$E$20," ","vs"," ",Analisis!$E$21),"")) ->  | E219: FALSE | I219: =+IF(A219="","",IF(E219=TRUE,G219,1/G219)) ->  | J219: =+IF(A219="","",1/I219) ->  | K219: =+IF(A219="","",CONCATENATE(Analisis!$E$20," es ",J219," veces más importante que ",Analisis!$E$21)) ->  | R219: 5 | T219: FUERTE
A221: =+IF(A201="","",IF(Analisis!$D$10>=5,+CONCATENATE(Analisis!$E$18," ","vs"," ",Analisis!$E$22),"")) ->  | E221: FALSE | I221: =+IF(A221="","",IF(E221=TRUE,G221,1/G221)) ->  | J221: =+IF(A221="","",1/I221) ->  | K221: =+IF(A221="","",CONCATENATE(Analisis!$E$18," es ",J221," veces más importante que ",Analisis!$E$22)) ->  | R221: 7 | T221: MUY FUERTE
A223: =+IF(A201="","",IF(Analisis!$D$10>=5,+CONCATENATE(Analisis!$E$19," ","vs"," ",Analisis!$E$22),"")) ->  | E223: FALSE | I223: =+IF(A223="","",IF(E223=TRUE,G223,1/G223)) ->  | J223: =+IF(A223="","",1/I223) ->  | K223: =+IF(A223="","",CONCATENATE(Analisis!$E$19," es ",J223," veces más importante que ",Analisis!$E$22)) ->  | R223: 9 | T223: EXTREMA
A225: =+IF(A201="","",IF(Analisis!$D$10>=5,+CONCATENATE(Analisis!$E$20," ","vs"," ",Analisis!$E$22),"")) ->  | E225: FALSE | I225: =+IF(A225="","",IF(E225=TRUE,G225,1/G225)) ->  | J225: =+IF(A225="","",1/I225) ->  | K225: =+IF(A225="","",CONCATENATE(Analisis!$E$20," es ",J225," veces más importante que ",Analisis!$E$22)) ->  | R225: 2,4,6,8 | T225: Valores de Transición
A227: =+IF(A201="","",IF(Analisis!$D$10>=5,+CONCATENATE(Analisis!$E$21," ","vs"," ",Analisis!$E$22),"")) ->  | E227: FALSE | I227: =+IF(A227="","",IF(E227=TRUE,G227,1/G227)) ->  | J227: =+IF(A227="","",1/I227) ->  | K227: =+IF(A227="","",CONCATENATE(Analisis!$E$21," es ",J227," veces más importante que ",Analisis!$E$22)) -> 
C229: Antes de "limpiar", Borrar la celda G227 | J229: Finalizar la encuesta

Sheet Bruto (hidden)
D1: 1 | E1: 2 | F1: 3 | G1: 4 | H1: 5 | I1: 6 | J1: 7 | K1: 8 | L1: 9 | M1: 10
D2: 0 | E2: 0.0001 | F2: 0.52 | G2: 0.89 | H2: 1.11 | I2: 1.25 | J2: 1.35 | K2: 1.4 | L2: 1.45 | M2: 1.49
D4: CRITERIOS | J4: ALTERNATIVAS
J6: =+D7 -> Formación | O6: =+E7 -> Costo de Vida | T6: =+F7 -> Ocio | Y6: =+G7 -> 0 | AD6: =+H7 -> 0 | AI6: =+I7 -> 0
D7: =+Analisis!C18 -> Formación | E7: =+C9 -> Costo de Vida | F7: =+C10 -> Ocio | G7: =+C11 -> 0 | H7: =+C12 -> 0 | I7: =+C13 -> 0 | J7: =+$C$14 -> Munchen | K7: =+$C$15 -> London | L7: =+$C$16 -> Praga | M7: =+$C$17 -> 0 | N7: =+$C$18 -> 0 | O7: =+$C$14 -> Munchen | P7: =+$C$15 -> London | Q7: =+$C$16 -> Praga | R7: =+$C$17 -> 0 | S7: =+$C$18 -> 0 | T7: =+$C$14 -> Munchen | U7: =+$C$15 -> London | V7: =+$C$16 -> Praga | W7: =+$C$17 -> 0 | X7: =+$C$18 -> 0 | Y7: =+$C$14 -> Munchen | Z7: =+$C$15 -> London | AA7: =+$C$16 -> Praga | AB7: =+$C$17 -> 0 | AC7: =+$C$18 -> 0 | AD7: =+$C$14 -> Munchen | AE7: =+$C$15 -> London | AF7: =+$C$16 -> Praga | AG7: =+$C$17 -> 0 | AH7: =+$C$18 -> 0 | AI7: =+$C$14 -> Munchen | AJ7: =+$C$15 -> London | AK7: =+$C$16 -> Praga | AL7: =+$C$17 -> 0 | AM7: =+$C$18 -> 0
C8: =+D7 -> Formación | D8: 1 | E8: =1/D9 -> 5 | F8: =+IF(D10=0,0,1/D10) -> 7 | G8: =+IF(D11=0,0,1/D11) -> 0 | H8: =+IF(D12=0,0,1/D12) -> 0 | I8: =+IF(OR(D13=0,D13=""),0,1/D13) -> 0 | J8: 0 | K8: 0 | L8: 0 | M8: 0 | N8: 0 | O8: 0 | P8: 0 | Q8: 0 | R8: 0 | S8: 0 | T8: 0 | U8: 0 | V8: 0 | W8: 0 | X8: 0 | Y8: 0 | Z8: 0 | AA8: 0 | AB8: 0 | AC8: 0 | AD8: 0 | AE8: 0 | AF8: 0 | AG8: 0 | AH8: 0 | AI8: 0 | AJ8: 0 | AK8: 0 | AL8: 0 | AM8: 0
C9: =+Analisis!C19 -> Costo de Vida | D9: =+IF(Analisis!D9>=2,D48,0) -> 0.2 | E9: 1 | F9: =+IF(E10=0,0,1/E10) -> 3 | G9: =+IF(E11=0,0,1/E11) -> 0 | H9: =+IF(E12=0,0,1/E12) -> 0 | I9: =+IF(OR(E13=0,E13=""),0,1/E13) -> 0 | J9: 0 | K9: 0 | L9: 0 | M9: 0 | N9: 0 | O9: 0 | P9: 0 | Q9: 0 | R9: 0 | S9: 0 | T9: 0 | U9: 0 | V9: 0 | W9: 0 | X9: 0 | Y9: 0 | Z9: 0 | AA9: 0 | AB9: 0 | AC9: 0 | AD9: 0 | AE9: 0 | AF9: 0 | AG9: 0 | AH9: 0 | AI9: 0 | AJ9: 0 | AK9: 0 | AL9: 0 | AM9: 0
C10: =+Analisis!C20 -> Ocio | D10: =+IF(Analisis!D9>=3,D51,0) -> 0.1428571429 | E10: =+IF(Analisis!D9>=3,D52,0) -> 0.3333333333 | F10: 1 | G10: =+IF(F11=0,0,1/F11) -> 0 | H10: =+IF(F12=0,0,1/F12) -> 0 | I10: =+IF(OR(F13=0,F13=""),0,1/F13) -> 0 | J10: 0 | K10: 0 | L10: 0 | M10: 0 | N10: 0 | O10: 0 | P10: 0 | Q10: 0 | R10: 0 | S10: 0 | T10: 0 | U10: 0 | V10: 0 | W10: 0 | X10: 0 | Y10: 0 | Z10: 0 | AA10: 0 | AB10: 0 | AC10: 0 | AD10: 0 | AE10: 0 | AF10: 0 | AG10: 0 | AH10: 0 | AI10: 0 | AJ10: 0 | AK10: 0 | AL10: 0 | AM10: 0
C11: =+Analisis!C21 -> 0 | D11: =+IF(Analisis!D9>=4,D55,0) -> 0 | E11: =+IF(Analisis!D9>=4,D56,0) -> 0 | F11: =+IF(Analisis!D9>=4,D57,0) -> 0 | G11: 1 | H11: =+IF(G12=0,0,1/G12) -> 0 | I11: =+IF(OR(G13=0,G13=""),0,1/G13) -> 0 | J11: 0 | K11: 0 | L11: 0 | M11: 0 | N11: 0 | O11: 0 | P11: 0 | Q11: 0 | R11: 0 | S11: 0 | T11: 0 | U11: 0 | V11: 0 | W11: 0 | X11: 0 | Y11: 0 | Z11: 0 | AA11: 0 | AB11: 0 | AC11: 0 | AD11: 0 | AE11: 0 | AF11: 0 | AG11: 0 | AH11: 0 | AI11: 0 | AJ11: 0 | AK11: 0 | AL11: 0 | AM11: 0
C12: =+Analisis!C22 -> 0 | D12: =+IF(Analisis!D9>=5,D60,0) -> 0 | E12: =+IF(Analisis!$D$9>=5,D61,0) -> 0 | F12: =+IF(Analisis!$D$9>=5,D62,0) -> 0 | G12: =+IF(Analisis!$D$9>=5,D63,0) -> 0 | H12: 1 | I12: =+IF(OR(H13=0,H13=""),0,1/H13) -> 0 | J12: 0 | K12: 0 | L12: 0 | M12: 0 | N12: 0 | O12: 0 | P12: 0 | Q12: 0 | R12: 0 | S12: 0 | T12: 0 | U12: 0 | V12: 0 | W12: 0 | X12: 0 | Y12: 0 | Z12: 0 | AA12: 0 | AB12: 0 | AC12: 0 | AD12: 0 | AE12: 0 | AF12: 0 | AG12: 0 | AH12: 0 | AI12: 0 | AJ12: 0 | AK12: 0 | AL12: 0 | AM12: 0
C13: =+Analisis!C23 -> 0 | D13: =+IF(Analisis!D9>=5,D66,0) -> 0 | E13: =+IF(Analisis!$D$9>=5,D67,0) -> 0 | F13: =+IF(Analisis!$D$9>=5,D68,0) -> 0 | G13: =+IF(Analisis!$D$9>=5,D69,0) -> 0 | H13: =+IF(Analisis!$D$9>=5,D70,0) -> 0 | I13: 1 | J13: 0 | K13: 0 | L13: 0 | M13: 0 | N13: 0 | O13: 0 | P13: 0 | Q13: 0 | R13: 0 | S13: 0 | T13: 0 | U13: 0 | V13: 0 | W13: 0 | X13: 0 | Y13: 0 | Z13: 0 | AA13: 0 | AB13: 0 | AC13: 0 | AD13: 0 | AE13: 0 | AF13: 0 | AG13: 0 | AH13: 0 | AI13: 0 | AJ13: 0 | AK13: 0 | AL13: 0 | AM13: 0
B14: =+C8 -> Formación | C14: =+Analisis!$E$18 -> Munchen | D14: 0 | E14: 0 | F14: 0 | G14: 0 | H14: 0 | I14: 0 | J14: 1 | K14: =1/J15 -> 0.3333333333 | L14: =+IF(J16=0,0,1/J16) -> 0.1428571429 | M14: =+IF(J17=0,0,1/J17) -> 0 | N14: =+IF(J18=0,0,1/J18) -> 0 | O14: 0 | P14: 0 | Q14: 0 | R14: 0 | S14: 0 | T14: 0 | U14: 0 | V14: 0 | W14: 0 | X14: 0 | Y14: 0 | Z14: 0 | AA14: 0 | AB14: 0 | AC14: 0 | AD14: 0 | AE14: 0 | AF14: 0 | AG14: 0 | AH14: 0 | AI14: 0 | AJ14: 0 | AK14: 0 | AL14: 0 | AM14: 0
C15: =+Analisis!$E$19 -> London | D15: 0 | E15: 0 | F15: 0 | G15: 0 | H15: 0 | I15: 0 | J15: =+IF(Analisis!$D$10>=2,J48,0) -> 3 | K15: 1 | L15: =+IF(K16=0,0,1/K16) -> 0.25 | M15: =+IF(K17=0,0,1/K17) -> 0 | N15: =+IF(K18=0,0,1/K18) -> 0 | O15: 0 | P15: 0 | Q15: 0 | R15: 0 | S15: 0 | T15: 0 | U15: 0 | V15: 0 | W15: 0 | X15: 0 | Y15: 0 | Z15: 0 | AA15: 0 | AB15: 0 | AC15: 0 | AD15: 0 | AE15: 0 | AF15: 0 | AG15: 0 | AH15: 0 | AI15: 0 | AJ15: 0 | AK15: 0 | AL15: 0 | AM15: 0
C16: =+Analisis!$E$20 -> Praga | D16: 0 | E16: 0 | F16: 0 | G16: 0 | H16: 0 | I16: 0 | J16: =+IF(Analisis!$D$10>=3,J49,0) -> 7 | K16: =+IF(Analisis!$D$10>=3,J50,0) -> 4 | L16: 1 | M16: =+IF(L17=0,0,1/L17) -> 0 | N16: =+IF(L18=0,0,1/L18) -> 0 | O16: 0 | P16: 0 | Q16: 0 | R16: 0 | S16: 0 | T16: 0 | U16: 0 | V16: 0 | W16: 0 | X16: 0 | Y16: 0 | Z16: 0 | AA16: 0 | AB16: 0 | AC16: 0 | AD16: 0 | AE16: 0 | AF16: 0 | AG16: 0 | AH16: 0 | AI16: 0 | AJ16: 0 | AK16: 0 | AL16: 0 | AM16: 0
C17: =+Analisis!$E$21 -> 0 | D17: 0 | E17: 0 | F17: 0 | G17: 0 | H17: 0 | I17: 0 | J17: =+IF(Analisis!$D$10>=4,J51,0) -> 0 | K17: =+IF(Analisis!$D$10>=4,J52,0) -> 0 | L17: =+IF(Analisis!$D$10>=4,J53,0) -> 0 | M17: 1 | N17: =+IF(M18=0,0,1/M18) -> 0 | O17: 0 | P17: 0 | Q17: 0 | R17: 0 | S17: 0 | T17: 0 | U17: 0 | V17: 0 | W17: 0 | X17: 0 | Y17: 0 | Z17: 0 | AA17: 0 | AB17: 0 | AC17: 0 | AD17: 0 | AE17: 0 | AF17: 0 | AG17: 0 | AH17: 0 | AI17: 0 | AJ17: 0 | AK17: 0 | AL17: 0 | AM17: 0
C18: =+Analisis!$E$22 -> 0 | D18: 0 | E18: 0 | F18: 0 | G18: 0 | H18: 0 | I18: 0 | J18: =+IF(Analisis!$D$10>=5,J54,0) -> 0 | K18: =+IF(Analisis!$D$10>=5,J55,0) -> 0 | L18: =+IF(Analisis!$D$10>=5,J56,0) -> 0 | M18: =+IF(Analisis!$D$10>=5,J57,0) -> 0 | N18: 1 | O18: 0 | P18: 0 | Q18: 0 | R18: 0 | S18: 0 | T18: 0 | U18: 0 | V18: 0 | W18: 0 | X18: 0 | Y18: 0 | Z18: 0 | AA18: 0 | AB18: 0 | AC18: 0 | AD18: 0 | AE18: 0 | AF18: 0 | AG18: 0 | AH18: 0 | AI18: 0 | AJ18: 0 | AK18: 0 | AL18: 0 | AM18: 0
B19: =+C9 -> Costo de Vida | C19: =+Analisis!$E$18 -> Munchen | D19: 0 | E19: 0 | F19: 0 | G19: 0 | H19: 0 | I19: 0 | J19: 0 | K19: 0 | L19: 0 | M19: 0 | N19: 0 | O19: 1 | P19: =1/O20 -> 0.3333333333 | Q19: =+IF(O21=0,0,1/O21) -> 4 | R19: =+IF(O22=0,0,1/O22) -> 0 | S19: =+IF(O23=0,0,1/O23) -> 0 | T19: 0 | U19: 0 | V19: 0 | W19: 0 | X19: 0 | Y19: 0 | Z19: 0 | AA19: 0 | AB19: 0 | AC19: 0 | AD19: 0 | AE19: 0 | AF19: 0 | AG19: 0 | AH19: 0 | AI19: 0 | AJ19: 0 | AK19: 0 | AL19: 0 | AM19: 0
C20: =+Analisis!$E$19 -> London | D20: 0 | E20: 0 | F20: 0 | G20: 0 | H20: 0 | I20: 0 | J20: 0 | K20: 0 | L20: 0 | M20: 0 | N20: 0 | O20: =+IF(Analisis!$D$10>=2,J60,0) -> 3 | P20: 1 | Q20: =+IF(P21=0,0,1/P21) -> 9 | R20: =+IF(P22=0,0,1/P22) -> 0 | S20: =+IF(P23=0,0,1/P23) -> 0 | T20: 0 | U20: 0 | V20: 0 | W20: 0 | X20: 0 | Y20: 0 | Z20: 0 | AA20: 0 | AB20: 0 | AC20: 0 | AD20: 0 | AE20: 0 | AF20: 0 | AG20: 0 | AH20: 0 | AI20: 0 | AJ20: 0 | AK20: 0 | AL20: 0 | AM20: 0
C21: =+Analisis!$E$20 -> Praga | D21: 0 | E21: 0 | F21: 0 | G21: 0 | H21: 0 | I21: 0 | J21: 0 | K21: 0 | L21: 0 | M21: 0 | N21: 0 | O21: =+IF(Analisis!$D$10>=3,J61,0) -> 0.25 | P21: =+IF(Analisis!$D$10>=3,J62,0) -> 0.1111111111 | Q21: 1 | R21: =+IF(Q22=0,0,1/Q22) -> 0 | S21: =+IF(Q23=0,0,1/Q23) -> 0 | T21: 0 | U21: 0 | V21: 0 | W21: 0 | X21: 0 | Y21: 0 | Z21: 0 | AA21: 0 | AB21: 0 | AC21: 0 | AD21: 0 | AE21: 0 | AF21: 0 | AG21: 0 | AH21: 0 | AI21: 0 | AJ21: 0 | AK21: 0 | AL21: 0 | AM21: 0
C22: =+Analisis!$E$21 -> 0 | D22: 0 | E22: 0 | F22: 0 | G22: 0 | H22: 0 | I22: 0 | J22: 0 | K22: 0 | L22: 0 | M22: 0 | N22: 0 | O22: =+IF(Analisis!$D$10>=4,J63,0) -> 0 | P22: =+IF(Analisis!$D$10>=4,J64,0) -> 0 | Q22: =+IF(Analisis!$D$10>=4,J65,0) -> 0 | R22: 1 | S22: =+IF(R23=0,0,1/R23) -> 0 | T22: 0 | U22: 0 | V22: 0 | W22: 0 | X22: 0 | Y22: 0 | Z22: 0 | AA22: 0 | AB22: 0 | AC22: 0 | AD22: 0 | AE22: 0 | AF22: 0 | AG22: 0 | AH22: 0 | AI22: 0 | AJ22: 0 | AK22: 0 | AL22: 0 | AM22: 0
C23: =+Analisis!$E$22 -> 0 | D23: 0 | E23: 0 | F23: 0 | G23: 0 | H23: 0 | I23: 0 | J23: 0 | K23: 0 | L23: 0 | M23: 0 | N23: 0 | O23: =+IF(Analisis!$D$10>=5,J66,0) -> 0 | P23: =+IF(Analisis!$D$10>=5,J67,0) -> 0 | Q23: =+IF(Analisis!$D$10>=5,J68,0) -> 0 | R23: =+IF(Analisis!$D$10>=5,J69,0) -> 0 | S23: 1 | T23: 0 | U23: 0 | V23: 0 | W23: 0 | X23: 0 | Y23: 0 | Z23: 0 | AA23: 0 | AB23: 0 | AC23: 0 | AD23: 0 | AE23: 0 | AF23: 0 | AG23: 0 | AH23: 0 | AI23: 0 | AJ23: 0 | AK23: 0 | AL23: 0 | AM23: 0
B24: =+C10 -> Ocio | C24: =+Analisis!$E$18 -> Munchen | D24: 0 | E24: 0 | F24: 0 | G24: 0 | H24: 0 | I24: 0 | J24: 0 | K24: 0 | L24: 0 | M24: 0 | N24: 0 | O24: 0 | P24: 0 | Q24: 0 | R24: 0 | S24: 0 | T24: 1 | U24: =1/T25 -> 7 | V24: =+IF(T26=0,0,1/T26) -> 3 | W24: =+IF(T27=0,0,1/T27) -> 0 | X24: =+IF(T28=0,0,1/T28) -> 0 | Y24: 0 | Z24: 0 | AA24: 0 | AB24: 0 | AC24: 0 | AD24: 0 | AE24: 0 | AF24: 0 | AG24: 0 | AH24: 0 | AI24: 0 | AJ24: 0 | AK24: 0 | AL24: 0 | AM24: 0
C25: =+Analisis!$E$19 -> London | D25: 0 | E25: 0 | F25: 0 | G25: 0 | H25: 0 | I25: 0 | J25: 0 | K25: 0 | L25: 0 | M25: 0 | N25: 0 | O25: 0 | P25: 0 | Q25: 0 | R25: 0 | S25: 0 | T25: =+IF(Analisis!$D$10>=2,J72,0) -> 0.1428571429 | U25: 1 | V25: =+IF(U26=0,0,1/U26) -> 0.25 | W25: =+IF(U27=0,0,1/U27) -> 0 | X25: =+IF(U28=0,0,1/U28) -> 0 | Y25: 0 | Z25: 0 | AA25: 0 | AB25: 0 | AC25: 0 | AD25: 0 | AE25: 0 | AF25: 0 | AG25: 0 | AH25: 0 | AI25: 0 | AJ25: 0 | AK25: 0 | AL25: 0 | AM25: 0
C26: =+Analisis!$E$20 -> Praga | D26: 0 | E26: 0 | F26: 0 | G26: 0 | H26: 0 | I26: 0 | J26: 0 | K26: 0 | L26: 0 | M26: 0 | N26: 0 | O26: 0 | P26: 0 | Q26: 0 | R26: 0 | S26: 0 | T26: =+IF(Analisis!$D$10>=3,J73,0) -> 0.3333333333 | U26: =+IF(Analisis!$D$10>=3,J74,0) -> 4 | V26: 1 | W26: =+IF(V27=0,0,1/V27) -> 0 | X26: =+IF(V28=0,0,1/V28) -> 0 | Y26: 0 | Z26: 0 | AA26: 0 | AB26: 0 | AC26: 0 | AD26: 0 | AE26: 0 | AF26: 0 | AG26: 0 | AH26: 0 | AI26: 0 | AJ26: 0 | AK26: 0 | AL26: 0 | AM26: 0
C27: =+Analisis!$E$21 -> 0 | D27: 0 | E27: 0 | F27: 0 | G27: 0 | H27: 0 | I27: 0 | J27: 0 | K27: 0 | L27: 0 | M27: 0 | N27: 0 | O27: 0 | P27: 0 | Q27: 0 | R27: 0 | S27: 0 | T27: =+IF(Analisis!$D$10>=4,J75,0) -> 0 | U27: =+IF(Analisis!$D$10>=4,J76,0) -> 0 | V27: =+IF(Analisis!$D$10>=4,J77,0) -> 0 | W27: 1 | X27: =+IF(W28=0,0,1/W28) -> 0 | Y27: 0 | Z27: 0 | AA27: 0 | AB27: 0 | AC27: 0 | AD27: 0 | AE27: 0 | AF27: 0 | AG27: 0 | AH27: 0 | AI27: 0 | AJ27: 0 | AK27: 0 | AL27: 0 | AM27: 0
C28: =+Analisis!$E$22 -> 0 | D28: 0 | E28: 0 | F28: 0 | G28: 0 | H28: 0 | I28: 0 | J28: 0 | K28: 0 | L28: 0 | M28: 0 | N28: 0 | O28: 0 | P28: 0 | Q28: 0 | R28: 0 | S28: 0 | T28: =+IF(Analisis!$D$10>=5,J78,0) -> 0 | U28: =+IF(Analisis!$D$10>=5,J79,0) -> 0 | V28: =+IF(Analisis!$D$10>=5,J80,0) -> 0 | W28: =+IF(Analisis!$D$10>=5,J81,0) -> 0 | X28: 1 | Y28: 0 | Z28: 0 | AA28: 0 | AB28: 0 | AC28: 0 | AD28: 0 | AE28: 0 | AF28: 0 | AG28: 0 | AH28: 0 | AI28: 0 | AJ28: 0 | AK28: 0 | AL28: 0 | AM28: 0
B29: =+C11 -> 0 | C29: =+Analisis!$E$18 -> Munchen | D29: 0 | E29: 0 | F29: 0 | G29: 0 | H29: 0 | I29: 0 | J29: 0 | K29: 0 | L29: 0 | M29: 0 | N29: 0 | O29: 0 | P29: 0 | Q29: 0 | R29: 0 | S29: 0 | T29: 0 | U29: 0 | V29: 0 | W29: 0 | X29: 0 | Y29: 1 | Z29: =1/Y30 ->  | AA29: =+IF(Y31=0,0,1/Y31) -> 0 | AB29: =+IF(Y32=0,0,1/Y32) -> 0 | AC29: =+IF(Y33=0,0,1/Y33) -> 0 | AD29: 0 | AE29: 0 | AF29: 0 | AG29: 0 | AH29: 0 | AI29: 0 | AJ29: 0 | AK29: 0 | AL29: 0 | AM29: 0
C30: =+Analisis!$E$19 -> London | D30: 0 | E30: 0 | F30: 0 | G30: 0 | H30: 0 | I30: 0 | J30: 0 | K30: 0 | L30: 0 | M30: 0 | N30: 0 | O30: 0 | P30: 0 | Q30: 0 | R30: 0 | S30: 0 | T30: 0 | U30: 0 | V30: 0 | W30: 0 | X30: 0 | Y30: =+IF(Analisis!$D$10>=2,P48,0) -> 0 | Z30: 1 | AA30: =+IF(Z31=0,0,1/Z31) -> 0 | AB30: =+IF(Z32=0,0,1/Z32) -> 0 | AC30: =+IF(Z33=0,0,1/Z33) -> 0 | AD30: 0 | AE30: 0 | AF30: 0 | AG30: 0 | AH30: 0 | AI30: 0 | AJ30: 0 | AK30: 0 | AL30: 0 | AM30: 0
C31: =+Analisis!$E$20 -> Praga | D31: 0 | E31: 0 | F31: 0 | G31: 0 | H31: 0 | I31: 0 | J31: 0 | K31: 0 | L31: 0 | M31: 0 | N31: 0 | O31: 0 | P31: 0 | Q31: 0 | R31: 0 | S31: 0 | T31: 0 | U31: 0 | V31: 0 | W31: 0 | X31: 0 | Y31: =+IF(Analisis!$D$10>=3,P49,0) -> 0 | Z31: =+IF(Analisis!$D$10>=3,P50,0) -> 0 | AA31: 1 | AB31: =+IF(AA32=0,0,1/AA32) -> 0 | AC31: =+IF(AA33=0,0,1/AA33) -> 0 | AD31: 0 | AE31: 0 | AF31: 0 | AG31: 0 | AH31: 0 | AI31: 0 | AJ31: 0 | AK31: 0 | AL31: 0 | AM31: 0
C32: =+Analisis!$E$21 -> 0 | D32: 0 | E32: 0 | F32: 0 | G32: 0 | H32: 0 | I32: 0 | J32: 0 | K32: 0 | L32: 0 | M32: 0 | N32: 0 | O32: 0 | P32: 0 | Q32: 0 | R32: 0 | S32: 0 | T32: 0 | U32: 0 | V32: 0 | W32: 0 | X32: 0 | Y32: =+IF(Analisis!$D$10>=4,P51,0) -> 0 | Z32: =+IF(Analisis!$D$10>=4,P52,0) -> 0 | AA32: =+IF(Analisis!$D$10>=4,P53,0) -> 0 | AB32: 1 | AC32: =+IF(AB33=0,0,1/AB33) -> 0 | AD32: 0 | AE32: 0 | AF32: 0 | AG32: 0 | AH32: 0 | AI32: 0 | AJ32: 0 | AK32: 0 | AL32: 0 | AM32: 0
C33: =+Analisis!$E$22 -> 0 | D33: 0 | E33: 0 | F33: 0 | G33: 0 | H33: 0 | I33: 0 | J33: 0 | K33: 0 | L33: 0 | M33: 0 | N33: 0 | O33: 0 | P33: 0 | Q33: 0 | R33: 0 | S33: 0 | T33: 0 | U33: 0 | V33: 0 | W33: 0 | X33: 0 | Y33: =+IF(Analisis!$D$10>=5,P54,0) -> 0 | Z33: =+IF(Analisis!$D$10>=5,P55,0) -> 0 | AA33: =+IF(Analisis!$D$10>=5,P56,0) -> 0 | AB33: =+IF(Analisis!$D$10>=5,P57,0) -> 0 | AC33: 1 | AD33: 0 | AE33: 0 | AF33: 0 | AG33: 0 | AH33: 0 | AI33: 0 | AJ33: 0 | AK33: 0 | AL33: 0 | AM33: 0
B34: =+C12 -> 0 | C34: =+Analisis!$E$18 -> Munchen | D34: 0 | E34: 0 | F34: 0 | G34: 0 | H34: 0 | I34: 0 | J34: 0 | K34: 0 | L34: 0 | M34: 0 | N34: 0 | O34: 0 | P34: 0 | Q34: 0 | R34: 0 | S34: 0 | T34: 0 | U34: 0 | V34: 0 | W34: 0 | X34: 0 | Y34: 0 | Z34: 0 | AA34: 0 | AB34: 0 | AC34: 0 | AD34: 1 | AE34: =1/AD35 ->  | AF34: =+IF(AD36=0,0,1/AD36) -> 0 | AG34: =+IF(AD37=0,0,1/AD37) -> 0 | AH34: =+IF(AD38=0,0,1/AD38) -> 0 | AI34: 0 | AJ34: 0 | AK34: 0 | AL34: 0 | AM34: 0
C35: =+Analisis!$E$19 -> London | D35: 0 | E35: 0 | F35: 0 | G35: 0 | H35: 0 | I35: 0 | J35: 0 | K35: 0 | L35: 0 | M35: 0 | N35: 0 | O35: 0 | P35: 0 | Q35: 0 | R35: 0 | S35: 0 | T35: 0 | U35: 0 | V35: 0 | W35: 0 | X35: 0 | Y35: 0 | Z35: 0 | AA35: 0 | AB35: 0 | AC35: 0 | AD35: =+IF(Analisis!$D$10>=2,P60,0) -> 0 | AE35: 1 | AF35: =+IF(AE36=0,0,1/AE36) -> 0 | AG35: =+IF(AE37=0,0,1/AE37) -> 0 | AH35: =+IF(AE38=0,0,1/AE38) -> 0 | AI35: 0 | AJ35: 0 | AK35: 0 | AL35: 0 | AM35: 0
C36: =+Analisis!$E$20 -> Praga | D36: 0 | E36: 0 | F36: 0 | G36: 0 | H36: 0 | I36: 0 | J36: 0 | K36: 0 | L36: 0 | M36: 0 | N36: 0 | O36: 0 | P36: 0 | Q36: 0 | R36: 0 | S36: 0 | T36: 0 | U36: 0 | V36: 0 | W36: 0 | X36: 0 | Y36: 0 | Z36: 0 | AA36: 0 | AB36: 0 | AC36: 0 | AD36: =+IF(Analisis!$D$10>=3,P61,0) -> 0 | AE36: =+IF(Analisis!$D$10>=3,P62,0) -> 0 | AF36: 1 | AG36: =+IF(AF37=0,0,1/AF37) -> 0 | AH36: =+IF(AF38=0,0,1/AF38) -> 0 | AI36: 0 | AJ36: 0 | AK36: 0 | AL36: 0 | AM36: 0
C37: =+Analisis!$E$21 -> 0 | D37: 0 | E37: 0 | F37: 0 | G37: 0 | H37: 0 | I37: 0 | J37: 0 | K37: 0 | L37: 0 | M37: 0 | N37: 0 | O37: 0 | P37: 0 | Q37: 0 | R37: 0 | S37: 0 | T37: 0 | U37: 0 | V37: 0 | W37: 0 | X37: 0 | Y37: 0 | Z37: 0 | AA37: 0 | AB37: 0 | AC37: 0 | AD37: =+IF(Analisis!$D$10>=4,P63,0) -> 0 | AE37: =+IF(Analisis!$D$10>=4,P64,0) -> 0 | AF37: =+IF(Analisis!$D$10>=4,P65,0) -> 0 | AG37: 1 | AH37: =+IF(AG38=0,0,1/AG38) -> 0 | AI37: 0 | AJ37: 0 | AK37: 0 | AL37: 0 | AM37: 0
C38: =+Analisis!$E$22 -> 0 | D38: 0 | E38: 0 | F38: 0 | G38: 0 | H38: 0 | I38: 0 | J38: 0 | K38: 0 | L38: 0 | M38: 0 | N38: 0 | O38: 0 | P38: 0 | Q38: 0 | R38: 0 | S38: 0 | T38: 0 | U38: 0 | V38: 0 | W38: 0 | X38: 0 | Y38: 0 | Z38: 0 | AA38: 0 | AB38: 0 | AC38: 0 | AD38: =+IF(Analisis!$D$10>=5,P66,0) -> 0 | AE38: =+IF(Analisis!$D$10>=5,P67,0) -> 0 | AF38: =+IF(Analisis!$D$10>=5,P68,0) -> 0 | AG38: =+IF(Analisis!$D$10>=5,P69,0) -> 0 | AH38: 1 | AI38: 0 | AJ38: 0 | AK38: 0 | AL38: 0 | AM38: 0
B39: =+C13 -> 0 | C39: =+Analisis!$E$18 -> Munchen | D39: 0 | E39: 0 | F39: 0 | G39: 0 | H39: 0 | I39: 0 | J39: 0 | K39: 0 | L39: 0 | M39: 0 | N39: 0 | O39: 0 | P39: 0 | Q39: 0 | R39: 0 | S39: 0 | T39: 0 | U39: 0 | V39: 0 | W39: 0 | X39: 0 | Y39: 0 | Z39: 0 | AA39: 0 | AB39: 0 | AC39: 0 | AD39: 0 | AE39: 0 | AF39: 0 | AG39: 0 | AH39: 0 | AI39: 1 | AJ39: =1/AI40 ->  | AK39: =+IF(AI41=0,0,1/AI41) -> 0 | AL39: =+IF(AI42=0,0,1/AI42) -> 0 | AM39: =+IF(AI43=0,0,1/AI43) -> 0
C40: =+Analisis!$E$19 -> London | D40: 0 | E40: 0 | F40: 0 | G40: 0 | H40: 0 | I40: 0 | J40: 0 | K40: 0 | L40: 0 | M40: 0 | N40: 0 | O40: 0 | P40: 0 | Q40: 0 | R40: 0 | S40: 0 | T40: 0 | U40: 0 | V40: 0 | W40: 0 | X40: 0 | Y40: 0 | Z40: 0 | AA40: 0 | AB40: 0 | AC40: 0 | AD40: 0 | AE40: 0 | AF40: 0 | AG40: 0 | AH40: 0 | AI40: =+IF(Analisis!$D$10>=2,P72,0) -> 0 | AJ40: 1 | AK40: =+IF(AJ41=0,0,1/AJ41) -> 0 | AL40: =+IF(AJ42=0,0,1/AJ42) -> 0 | AM40: =+IF(AJ43=0,0,1/AJ43) -> 0
C41: =+Analisis!$E$20 -> Praga | D41: 0 | E41: 0 | F41: 0 | G41: 0 | H41: 0 | I41: 0 | J41: 0 | K41: 0 | L41: 0 | M41: 0 | N41: 0 | O41: 0 | P41: 0 | Q41: 0 | R41: 0 | S41: 0 | T41: 0 | U41: 0 | V41: 0 | W41: 0 | X41: 0 | Y41: 0 | Z41: 0 | AA41: 0 | AB41: 0 | AC41: 0 | AD41: 0 | AE41: 0 | AF41: 0 | AG41: 0 | AH41: 0 | AI41: =+IF(Analisis!$D$10>=3,P73,0) -> 0 | AJ41: =+IF(Analisis!$D$10>=3,P74,0) -> 0 | AK41: 1 | AL41: =+IF(AK42=0,0,1/AK42) -> 0 | AM41: =+IF(AK43=0,0,1/AK43) -> 0
C42: =+Analisis!$E$21 -> 0 | D42: 0 | E42: 0 | F42: 0 | G42: 0 | H42: 0 | I42: 0 | J42: 0 | K42: 0 | L42: 0 | M42: 0 | N42: 0 | O42: 0 | P42: 0 | Q42: 0 | R42: 0 | S42: 0 | T42: 0 | U42: 0 | V42: 0 | W42: 0 | X42: 0 | Y42: 0 | Z42: 0 | AA42: 0 | AB42: 0 | AC42: 0 | AD42: 0 | AE42: 0 | AF42: 0 | AG42: 0 | AH42: 0 | AI42: =+IF(Analisis!$D$10>=4,P75,0) -> 0 | AJ42: =+IF(Analisis!$D$10>=4,P76,0) -> 0 | AK42: =+IF(Analisis!$D$10>=4,P77,0) -> 0 | AL42: 1 | AM42: =+IF(AL43=0,0,1/AL43) -> 0
C43: =+Analisis!$E$22 -> 0 | D43: 0 | E43: 0 | F43: 0 | G43: 0 | H43: 0 | I43: 0 | J43: 0 | K43: 0 | L43: 0 | M43: 0 | N43: 0 | O43: 0 | P43: 0 | Q43: 0 | R43: 0 | S43: 0 | T43: 0 | U43: 0 | V43: 0 | W43: 0 | X43: 0 | Y43: 0 | Z43: 0 | AA43: 0 | AB43: 0 | AC43: 0 | AD43: 0 | AE43: 0 | AF43: 0 | AG43: 0 | AH43: 0 | AI43: =+IF(Analisis!$D$10>=5,P78,0) -> 0 | AJ43: =+IF(Analisis!$D$10>=5,P79,0) -> 0 | AK43: =+IF(Analisis!$D$10>=5,P80,0) -> 0 | AL43: =+IF(Analisis!$D$10>=5,P81,0) -> 0 | AM43: 1
A47: 2 | G47: Para | H47: =+C8 -> Formación | M47: Para | N47: =+C11 -> 0
A48: # de categorias de primer nivel | D48: =+IF('Enc. de Criterios'!A12="",0,'Enc. de Criterios'!I12) -> 0.2 | G48: =+'Enc. de Alternativas'!$A$14 -> Munchen vs London | J48: =+IF('Enc. de Alternativas'!A14="",0,'Enc. de Alternativas'!J14) -> 3 | M48: =+'Enc. de Alternativas'!$A$14 -> Munchen vs London | P48: =+IF('Enc. de Alternativas'!A129="",0,'Enc. de Alternativas'!J129) -> 0
G49: =+'Enc. de Alternativas'!$A$16 -> Munchen vs Praga | J49: =+IF('Enc. de Alternativas'!A16="",0,'Enc. de Alternativas'!J16) -> 7 | M49: =+'Enc. de Alternativas'!$A$16 -> Munchen vs Praga | P49: =+IF('Enc. de Alternativas'!A131="",0,'Enc. de Alternativas'!J131) -> 0
A50: 3 | G50: =+'Enc. de Alternativas'!$A$18 -> London vs Praga | J50: =+IF('Enc. de Alternativas'!A18="",0,'Enc. de Alternativas'!J18) -> 4 | M50: =+'Enc. de Alternativas'!$A$18 -> London vs Praga | P50: =+IF('Enc. de Alternativas'!A133="",0,'Enc. de Alternativas'!J133) -> 0
A51: # de categorias de primer nivel | D51: =+IF('Enc. de Criterios'!A14="",0,'Enc. de Criterios'!I14) -> 0.1428571429 | G51: =+'Enc. de Alternativas'!$A$20 ->  | J51: =+IF('Enc. de Alternativas'!A20="",0,'Enc. de Alternativas'!J20) -> 0 | M51: =+'Enc. de Alternativas'!$A$20 ->  | P51: =+IF('Enc. de Alternativas'!A135="",0,'Enc. de Alternativas'!J135) -> 0
A52: # de categorias de segundo nivel | D52: =+IF('Enc. de Criterios'!A16="",0,'Enc. de Criterios'!I16) -> 0.3333333333 | G52: =+'Enc. de Alternativas'!$A$22 ->  | J52: =+IF('Enc. de Alternativas'!A22="",0,'Enc. de Alternativas'!J22) -> 0 | M52: =+'Enc. de Alternativas'!$A$22 ->  | P52: =+IF('Enc. de Alternativas'!A137="",0,'Enc. de Alternativas'!J137) -> 0
G53: =+'Enc. de Alternativas'!$A$24 ->  | J53: =+IF('Enc. de Alternativas'!A24="",0,'Enc. de Alternativas'!J24) -> 0 | M53: =+'Enc. de Alternativas'!$A$24 ->  | P53: =+IF('Enc. de Alternativas'!A139="",0,'Enc. de Alternativas'!J139) -> 0
A54: 4 | G54: =+'Enc. de Alternativas'!$A$26 ->  | J54: =+IF('Enc. de Alternativas'!A26="",0,'Enc. de Alternativas'!J26) -> 0 | M54: =+'Enc. de Alternativas'!$A$26 ->  | P54: =+IF('Enc. de Alternativas'!A141="",0,'Enc. de Alternativas'!J141) -> 0
A55: # de categorias de primer nivel | D55: =+IF('Enc. de Criterios'!A18="",0,'Enc. de Criterios'!I18) -> 0 | G55: =+'Enc. de Alternativas'!$A$28 ->  | J55: =+IF('Enc. de Alternativas'!A28="",0,'Enc. de Alternativas'!J28) -> 0 | M55: =+'Enc. de Alternativas'!$A$28 ->  | P55: =+IF('Enc. de Alternativas'!A143="",0,'Enc. de Alternativas'!J143) -> 0
A56: # de categorias de segundo nivel | D56: =+IF('Enc. de Criterios'!A20="",0,'Enc. de Criterios'!I20) -> 0 | G56: =+'Enc. de Alternativas'!$A$30 ->  | J56: =+IF('Enc. de Alternativas'!A30="",0,'Enc. de Alternativas'!J30) -> 0 | M56: =+'Enc. de Alternativas'!$A$30 ->  | P56: =+IF('Enc. de Alternativas'!A145="",0,'Enc. de Alternativas'!J145) -> 0
A57: # de categorias de tercer nivel | D57: =+IF('Enc. de Criterios'!A22="",0,'Enc. de Criterios'!I22) -> 0 | G57: =+'Enc. de Alternativas'!$A$32 ->  | J57: =+IF('Enc. de Alternativas'!A32="",0,'Enc. de Alternativas'!J32) -> 0 | M57: =+'Enc. de Alternativas'!$A$32 ->  | P57: =+IF('Enc. de Alternativas'!A147="",0,'Enc. de Alternativas'!J147) -> 0
A59: 5 | G59: Para | H59: =+C9 -> Costo de Vida | M59: Para | N59: =+C12 -> 0
A60: # de categorias de primer nivel | D60: =+IF('Enc. de Criterios'!A24="",0,'Enc. de Criterios'!I24) -> 0 | G60: =+'Enc. de Alternativas'!$A$14 -> Munchen vs London | J60: =+IF('Enc. de Alternativas'!A52="",0,'Enc. de Alternativas'!J52) -> 3 | M60: =+'Enc. de Alternativas'!$A$14 -> Munchen vs London | P60: =+IF('Enc. de Alternativas'!A170="",0,'Enc. de Alternativas'!J170) -> 0
A61: # de categorias de segundo nivel | D61: =+IF('Enc. de Criterios'!A26="",0,'Enc. de Criterios'!I26) -> 0 | G61: =+'Enc. de Alternativas'!$A$16 -> Munchen vs Praga | J61: =+IF('Enc. de Alternativas'!A54="",0,'Enc. de Alternativas'!J54) -> 0.25 | M61: =+'Enc. de Alternativas'!$A$16 -> Munchen vs Praga | P61: =+IF('Enc. de Alternativas'!A172="",0,'Enc. de Alternativas'!J172) -> 0
A62: # de categorias de tercer nivel | D62: =+IF('Enc. de Criterios'!A28="",0,'Enc. de Criterios'!I28) -> 0 | G62: =+'Enc. de Alternativas'!$A$18 -> London vs Praga | J62: =+IF('Enc. de Alternativas'!A56="",0,'Enc. de Alternativas'!J56) -> 0.1111111111 | M62: =+'Enc. de Alternativas'!$A$18 -> London vs Praga | P62: =+IF('Enc. de Alternativas'!A174="",0,'Enc. de Alternativas'!J174) -> 0
A63: # de categorias de cuarto nivel | D63: =+IF('Enc. de Criterios'!A30="",0,'Enc. de Criterios'!I30) -> 0 | G63: =+'Enc. de Alternativas'!$A$20 ->  | J63: =+IF('Enc. de Alternativas'!A58="",0,'Enc. de Alternativas'!J58) -> 0 | M63: =+'Enc. de Alternativas'!$A$20 ->  | P63: =+IF('Enc. de Alternativas'!A176="",0,'Enc. de Alternativas'!J176) -> 0
G64: =+'Enc. de Alternativas'!$A$22 ->  | J64: =+IF('Enc. de Alternativas'!A60="",0,'Enc. de Alternativas'!J60) -> 0 | M64: =+'Enc. de Alternativas'!$A$22 ->  | P64: =+IF('Enc. de Alternativas'!A178="",0,'Enc. de Alternativas'!J178) -> 0
A65: 6 | G65: =+'Enc. de Alternativas'!$A$24 ->  | J65: =+IF('Enc. de Alternativas'!A62="",0,'Enc. de Alternativas'!J62) -> 0 | M65: =+'Enc. de Alternativas'!$A$24 ->  | P65: =+IF('Enc. de Alternativas'!A180="",0,'Enc. de Alternativas'!J180) -> 0
A66: # de categorias de primer nivel | D66: =+IF('Enc. de Criterios'!A32="",0,'Enc. de Criterios'!I32) -> 0 | G66: =+'Enc. de Alternativas'!$A$26 ->  | J66: =+IF('Enc. de Alternativas'!A64="",0,'Enc. de Alternativas'!J64) -> 0 | M66: =+'Enc. de Alternativas'!$A$26 ->  | P66: =+IF('Enc. de Alternativas'!A182="",0,'Enc. de Alternativas'!J182) -> 0
A67: # de categorias de segundo nivel | D67: =+IF('Enc. de Criterios'!A34="",0,'Enc. de Criterios'!I34) -> 0 | G67: =+'Enc. de Alternativas'!$A$28 ->  | J67: =+IF('Enc. de Alternativas'!A66="",0,'Enc. de Alternativas'!J66) -> 0 | M67: =+'Enc. de Alternativas'!$A$28 ->  | P67: =+IF('Enc. de Alternativas'!A184="",0,'Enc. de Alternativas'!J184) -> 0
A68: # de categorias de tercer nivel | D68: =+IF('Enc. de Criterios'!A36="",0,'Enc. de Criterios'!I36) -> 0 | G68: =+'Enc. de Alternativas'!$A$30 ->  | J68: =+IF('Enc. de Alternativas'!A68="",0,'Enc. de Alternativas'!J68) -> 0 | M68: =+'Enc. de Alternativas'!$A$30 ->  | P68: =+IF('Enc. de Alternativas'!A186="",0,'Enc. de Alternativas'!J186) -> 0
A69: # de categorias de cuarto nivel | D69: =+IF('Enc. de Criterios'!A38="",0,'Enc. de Criterios'!I38) -> 0 | G69: =+'Enc. de Alternativas'!$A$32 ->  | J69: =+IF('Enc. de Alternativas'!A70="",0,'Enc. de Alternativas'!J70) -> 0 | M69: =+'Enc. de Alternativas'!$A$32 ->  | P69: =+IF('Enc. de Alternativas'!A188="",0,'Enc. de Alternativas'!J188) -> 0
A70: # de categorias de quinto nivel | D70: =+IF('Enc. de Criterios'!A40="",0,'Enc. de Criterios'!I40) -> 0
G71: Para | H71: =+C10 -> Ocio | M71: Para | N71: =+C13 -> 0
G72: =+'Enc. de Alternativas'!$A$14 -> Munchen vs London | J72: =+IF('Enc. de Alternativas'!A91="",0,'Enc. de Alternativas'!J91) -> 0.1428571429 | M72: =+'Enc. de Alternativas'!$A$14 -> Munchen vs London | P72: =+IF('Enc. de Alternativas'!A209="",0,'Enc. de Alternativas'!J209) -> 0
G73: =+'Enc. de Alternativas'!$A$16 -> Munchen vs Praga | J73: =+IF('Enc. de Alternativas'!A93="",0,'Enc. de Alternativas'!J93) -> 0.3333333333 | M73: =+'Enc. de Alternativas'!$A$16 -> Munchen vs Praga | P73: =+IF('Enc. de Alternativas'!A211="",0,'Enc. de Alternativas'!J211) -> 0
G74: =+'Enc. de Alternativas'!$A$18 -> London vs Praga | J74: =+IF('Enc. de Alternativas'!A95="",0,'Enc. de Alternativas'!J95) -> 4 | M74: =+'Enc. de Alternativas'!$A$18 -> London vs Praga | P74: =+IF('Enc. de Alternativas'!A213="",0,'Enc. de Alternativas'!J213) -> 0
G75: =+'Enc. de Alternativas'!$A$20 ->  | J75: =+IF('Enc. de Alternativas'!A97="",0,'Enc. de Alternativas'!J97) -> 0 | M75: =+'Enc. de Alternativas'!$A$20 ->  | P75: =+IF('Enc. de Alternativas'!A215="",0,'Enc. de Alternativas'!J215) -> 0
G76: =+'Enc. de Alternativas'!$A$22 ->  | J76: =+IF('Enc. de Alternativas'!A99="",0,'Enc. de Alternativas'!J99) -> 0 | M76: =+'Enc. de Alternativas'!$A$22 ->  | P76: =+IF('Enc. de Alternativas'!A217="",0,'Enc. de Alternativas'!J217) -> 0
G77: =+'Enc. de Alternativas'!$A$24 ->  | J77: =+IF('Enc. de Alternativas'!A101="",0,'Enc. de Alternativas'!J101) -> 0 | M77: =+'Enc. de Alternativas'!$A$24 ->  | P77: =+IF('Enc. de Alternativas'!A219="",0,'Enc. de Alternativas'!J219) -> 0
G78: =+'Enc. de Alternativas'!$A$26 ->  | J78: =+IF('Enc. de Alternativas'!A103="",0,'Enc. de Alternativas'!J103) -> 0 | M78: =+'Enc. de Alternativas'!$A$26 ->  | P78: =+IF('Enc. de Alternativas'!A221="",0,'Enc. de Alternativas'!J221) -> 0
G79: =+'Enc. de Alternativas'!$A$28 ->  | J79: =+IF('Enc. de Alternativas'!A105="",0,'Enc. de Alternativas'!J105) -> 0 | M79: =+'Enc. de Alternativas'!$A$28 ->  | P79: =+IF('Enc. de Alternativas'!A223="",0,'Enc. de Alternativas'!J223) -> 0
G80: =+'Enc. de Alternativas'!$A$30 ->  | J80: =+IF('Enc. de Alternativas'!A107="",0,'Enc. de Alternativas'!J107) -> 0 | M80: =+'Enc. de Alternativas'!$A$30 ->  | P80: =+IF('Enc. de Alternativas'!A225="",0,'Enc. de Alternativas'!J225) -> 0
G81: =+'Enc. de Alternativas'!$A$32 ->  | J81: =+IF('Enc. de Alternativas'!A109="",0,'Enc. de Alternativas'!J109) -> 0 | M81: =+'Enc. de Alternativas'!$A$32 ->  | P81: =+IF('Enc. de Alternativas'!A227="",0,'Enc. de Alternativas'!J227) -> 0

Sheet Calculo de los criterios
B2: Criterios
B4: Metodo Aproximado
C6: Matriz resultante | E6: Categorias
C7: =+COUNTIF(C9:C14,">0") -> 3
C8: =+B9 -> Formación | D8: =+B10 -> Costo de Vida | E8: =+B11 -> Ocio | F8: =+B12 -> 0 | G8: =+B13 -> 0 | H8: =+B14 -> 0 | K8: =+C8 -> Formación | L8: Costo de Vida | M8: Ocio | N8: 0 | O8: 0 | P8: 0 | U8: λ | V8: n | W8: IC | X8: CR
B9: =+Analisis!C18 -> Formación | C9: =+Bruto!D8 -> 1 | D9: =+Bruto!E8 -> 5 | E9: =+Bruto!F8 -> 7 | F9: =+Bruto!G8 -> 0 | G9: =+Bruto!H8 -> 0 | H9: =+Bruto!I8 -> 0 | J9: =+B9 -> Formación | K9: =+C9/C$16 -> 0.7446808511 | L9: 0.7894736842 | M9: 0.6363636364 | N9: 0 | O9: 0 | P9: 0 | R9: =+SUM(K9:P9)-K17 -> 2.170518172 | S9: =IF(R9=0,"",R9/(6-Q17)) -> 0.7235060572 | U9: =+SUMPRODUCT(C16:H16,K15:P15) -> 3.111463701 | V9: =+COUNTIF(C9:H9,">0") -> 3 | W9: =+(U9-V9)/(V9-1) -> 0.05573185058 | X9: =+W9/+HLOOKUP(V9,Bruto!D1:M2,2,FALSE) -> 0.1071766357 | Z9: =+IF(AD29="","",IF(X10>0.1,"La matriz es inconsistente, se debe volver a evaluar","La matriz es consistente")) -> La matriz es inconsistente, se debe volver a evaluar
B10: =+Analisis!C19 -> Costo de Vida | C10: =+Bruto!D9 -> 0.2 | D10: =+Bruto!E9 -> 1 | E10: =+Bruto!F9 -> 3 | F10: =+Bruto!G9 -> 0 | G10: =+Bruto!H9 -> 0 | H10: =+Bruto!I9 -> 0 | J10: Costo de Vida | K10: 0.1489361702 | L10: 0.1578947368 | M10: 0.2727272727 | N10: 0 | O10: 0 | P10: 0 | R10: =+SUM(K10:P10)-L17 -> 0.5795581798 | S10: =IF(R10=0,"",R10/(6-Q17)) -> 0.1931860599 | X10: =+IF(X9<0,0,X9) -> 0.1071766357
B11: =+Analisis!C20 -> Ocio | C11: =+Bruto!D10 -> 0.1428571429 | D11: =+Bruto!E10 -> 0.3333333333 | E11: =+Bruto!F10 -> 1 | F11: =+Bruto!G10 -> 0 | G11: =+Bruto!H10 -> 0 | H11: =+Bruto!I10 -> 0 | J11: Ocio | K11: 0.1063829787 | L11: 0.05263157895 | M11: 0.09090909091 | N11: 0 | O11: 0 | P11: 0 | R11: =+SUM(K11:P11)-M17 -> 0.2499236486 | S11: =IF(R11=0,"",R11/(6-Q17)) -> 0.08330788286
B12: =+Analisis!C21 -> 0 | C12: =+Bruto!D11 -> 0 | D12: =+Bruto!E11 -> 0 | E12: =+Bruto!F11 -> 0 | F12: =+Bruto!G11 -> 1 | G12: =+Bruto!H11 -> 0 | H12: =+Bruto!I11 -> 0 | J12: 0 | K12: 0 | L12: 0 | M12: 0 | N12: 1 | O12: 0 | P12: 0 | R12: =+SUM(K12:P12)-N17 -> 0 | S12: =IF(R12=0,"",R12/(6-Q17)) ->  | U12: 1 | V12: 0 | W12: 0 | X12: 0 | Y12: 0 | Z12: 0 | AB12: =+(C9:H14-Z22*U12:Z17) -> -2.064887558 | AC12: 5 | AD12: 7 | AE12: 0 | AF12: 0 | AG12: 0
B13: =+Analisis!C22 -> 0 | C13: =+Bruto!D12 -> 0 | D13: =+Bruto!E12 -> 0 | E13: =+Bruto!F12 -> 0 | F13: =+Bruto!G12 -> 0 | G13: =+Bruto!H12 -> 1 | H13: =+Bruto!I12 -> 0 | J13: 0 | K13: 0 | L13: 0 | M13: 0 | N13: 0 | O13: 1 | P13: 0 | R13: =+SUM(K13:P13)-O17 -> 0 | S13: =IF(R13=0,"",R13/(6-Q17)) ->  | U13: 0 | V13: 1 | W13: 0 | X13: 0 | Y13: 0 | Z13: 0 | AB13: 0.2 | AC13: -2.064887558 | AD13: 3 | AE13: 0 | AF13: 0 | AG13: 0
B14: =+Analisis!C23 -> 0 | C14: =+Bruto!D13 -> 0 | D14: =+Bruto!E13 -> 0 | E14: =+Bruto!F13 -> 0 | F14: =+Bruto!G13 -> 0 | G14: =+Bruto!H13 -> 0 | H14: =+Bruto!I13 -> 1 | J14: 0 | K14: 0 | L14: 0 | M14: 0 | N14: 0 | O14: 0 | P14: 1 | R14: =+SUM(K14:P14)-P17 -> 0 | S14: =IF(R14=0,"",R14/(6-Q17)) ->  | U14: 0 | V14: 0 | W14: 1 | X14: 0 | Y14: 0 | Z14: 0 | AB14: 0.1428571429 | AC14: 0.3333333333 | AD14: -2.064887558 | AE14: 0 | AF14: 0 | AG14: 0
K15: =+S9 -> 0.7235060572 | L15: =+S10 -> 0.1931860599 | M15: =+S11 -> 0.08330788286 | N15: =+S12 ->  | O15: =+S13 ->  | P15: =+S14 ->  | U15: 0 | V15: 0 | W15: 0 | X15: 1 | Y15: 0 | Z15: 0 | AB15: 0 | AC15: 0 | AD15: 0 | AE15: -2.064887558 | AF15: 0 | AG15: 0
C16: =+SUMIF(C9:C14,">0",C9:C14) -> 1.342857143 | D16: 6.333333333 | E16: 11 | F16: 1 | G16: 1 | H16: 1 | U16: 0 | V16: 0 | W16: 0 | X16: 0 | Y16: 1 | Z16: 0 | AB16: 0 | AC16: 0 | AD16: 0 | AE16: 0 | AF16: -2.064887558 | AG16: 0
K17: =+IF(K9=1,1,0) -> 0 | L17: =+IF(L10=1,1,0) -> 0 | M17: =+IF(M11=1,1,0) -> 0 | N17: =+IF(N12=1,1,0) -> 1 | O17: =+IF(O13=1,1,0) -> 1 | P17: =+IF(P14=1,1,0) -> 1 | Q17: =SUM(K17:P17) -> 3 | U17: 0 | V17: 0 | W17: 0 | X17: 0 | Y17: 0 | Z17: 1 | AB17: 0 | AC17: 0 | AD17: 0 | AE17: 0 | AF17: 0 | AG17: -2.064887558
B19: Metodo Exacto
C21: =+MMULT(C9:H14,C9:H14) -> 3 | D21: 12.33333333 | E21: 29 | F21: 0 | G21: 0 | H21: 0 | J21: =+IF(C21=0,"",SUM(C21:H21)) -> 44.33333333 | K21: =+IF(J21="","",J21/$J$27) -> 0.7352708893 | N21: =+MMULT(C21:H26,C21:H26) -> 29.43809524 | O21: 114.047619 | P21: 265.2666667 | Q21: 0 | R21: 0 | S21: 0 | U21: =+IF(N21=0,"",SUM(N21:S21)) -> 408.752381 | V21: =+IF(U21="","",U21/$U$27) -> 0.7305327359
C22: 0.8285714286 | D22: 3 | E22: 7.4 | F22: 0 | G22: 0 | H22: 0 | J22: 11.22857143 | K22: 0.1862265045 | N22: 7.579047619 | O22: 29.43809524 | P22: 68.42857143 | Q22: 0 | R22: 0 | S22: 0 | U22: 105.4457143 | V22: 0.1884552843 | Y22: λ | Z22: 3.064887558 | AC22: 2 | AD22: deter | AE22: =+MDETERM(AB12:AC13) -> 3.263760626
C23: 0.3523809524 | D23: 1.380952381 | E23: 3 | F23: 0 | G23: 0 | H23: 0 | J23: 4.733333333 | K23: 0.07850260622 | N23: 3.258503401 | O23: 12.63174603 | P23: 29.43809524 | Q23: 0 | R23: 0 | S23: 0 | U23: 45.32834467 | V23: 0.08101197984 | Y23: deter | Z23: =IF(C9="","",VLOOKUP(V9,AC22:AE26,3,FALSE)) -> 2.180048461e-07 | AC23: 3 | AD23: deter | AE23: =+MDETERM(AB12:AD14) -> 2.180048461e-07
C24: 0 | D24: 0 | E24: 0 | F24: 1 | G24: 0 | H24: 0 | N24: 0 | O24: 0 | P24: 0 | Q24: 1 | R24: 0 | S24: 0 | AC24: 4 | AD24: deter | AE24: =+MDETERM(AB12:AE15) -> -4.501554943e-07
C25: 0 | D25: 0 | E25: 0 | F25: 0 | G25: 1 | H25: 0 | N25: 0 | O25: 0 | P25: 0 | Q25: 0 | R25: 1 | S25: 0 | AC25: 5 | AD25: deter | AE25: =+MDETERM(AB12:AF16) -> 9.295204792e-07
C26: 0 | D26: 0 | E26: 0 | F26: 0 | G26: 0 | H26: 1 | N26: 0 | O26: 0 | P26: 0 | Q26: 0 | R26: 0 | S26: 1 | AC26: 6 | AD26: deter | AE26: =+MDETERM(AB12:AG17) -> -1.919355272e-06
J27: =SUM(J21:J26) -> 60.2952381 | U27: =SUM(U21:U26) -> 559.5264399
Y28: λ | Z28: n | AA28: IC | AB28: CR
C29: =+MMULT(N21:S26,N21:S26) -> 2595.346122 | D29: 10065.47051 | E29: 23422.00644 | F29: 0 | G29: 0 | H29: 0 | J29: =+IF(C29=0,"",SUM(C29:H29)) -> 36082.82307 | K29: =+IF(J29="","",J29/$J$35) -> 0.730644613 | L29: =+K29-V21 -> 0.0001118771282 | N29: =+MMULT(C29:H34,C29:H34) -> 20207450.93 | O29: 78370111.4 | P29: 182364645.1 | Q29: 0 | R29: 0 | S29: 0 | U29: =+IF(N29=0,"",SUM(N29:S29)) -> 280942207.4 | V29: =+IF(U29="","",U29/$U$35) -> 0.7306446714 | W29: =+V29-K29 -> 5.833822225e-08 | Y29: =+Z22 -> 3.064887558 | Z29: =+COUNTIF(AB12:AB17,"<>0") -> 3 | AA29: =+(Y29-Z29)/(Z29-1) -> 0.0324437788 | AB29: =+AA29/+HLOOKUP(Z29,Bruto!D1:M2,2,FALSE) -> 0.06239188232 | AD29: =+IF(AB29<0,"",IF(AB30>0.1,"La matriz es inconsistente, se debe volver a evaluar","La matriz es consistente")) -> La matriz es consistente
C30: 669.200184 | D30: 2595.346122 | E30: 6039.282304 | F30: 0 | G30: 0 | H30: 0 | J30: 9303.82861 | K30: 0.1883941354 | L30: =+K30-V22 -> -6.114886926e-05 | N30: 5210418.431 | O30: 20207450.93 | P30: 47022066.84 | Q30: 0 | R30: 0 | S30: 0 | U30: 72439936.2 | V30: 0.1883940966 | W30: =+V30-K30 -> -3.875450533e-08 | AB30: =+IF(AB29<0,0,AB29) -> 0.06239188232
C31: 287.5848716 | D31: 1115.33364 | E31: 2595.346122 | F31: 0 | G31: 0 | H31: 0 | J31: 3998.264634 | K31: 0.08096125158 | N31: 2239146.04 | O31: 8684030.719 | P31: 20207450.93 | Q31: 0 | R31: 0 | S31: 0 | U31: 31130627.68 | V31: 0.080961232
C32: 0 | D32: 0 | E32: 0 | F32: 1 | G32: 0 | H32: 0 | N32: 0 | O32: 0 | P32: 0 | Q32: 1 | R32: 0 | S32: 0
C33: 0 | D33: 0 | E33: 0 | F33: 0 | G33: 1 | H33: 0 | N33: 0 | O33: 0 | P33: 0 | Q33: 0 | R33: 1 | S33: 0
C34: 0 | D34: 0 | E34: 0 | F34: 0 | G34: 0 | H34: 1 | N34: 0 | O34: 0 | P34: 0 | Q34: 0 | R34: 0 | S34: 1
J35: =SUM(J29:J34) -> 49384.91631 | U35: =SUM(U29:U34) -> 384512771.3
B39: Alternativas
B41: Para | C41: =+C8 -> Formación
B43: Metodo Aproximado
R44: =SUM(R46:R50) -> 1
C45: =+Analisis!$E$18 -> Munchen | D45: =+Analisis!$E$19 -> London | E45: =+Analisis!$E$20 -> Praga | F45: =+Analisis!$E$21 -> 0 | G45: =+Analisis!$E$22 -> 0 | K45: =+C45 -> Munchen | L45: =+D45 -> London | M45: =+E45 -> Praga | N45: 0 | O45: =+G45 -> 0
B46: =+C45 -> Munchen | C46: =+IF(Analisis!$C$18<>"",Bruto!J14,"") -> 1 | D46: =+IF(Analisis!$C$18<>"",Bruto!K14,"") -> 0.3333333333 | E46: =+IF(Analisis!$C$18<>"",Bruto!L14,"") -> 0.1428571429 | F46: =+IF(Analisis!$C$18<>"",Bruto!M14,"") -> 0 | G46: =+IF(Analisis!$C$18<>"",Bruto!N14,"") -> 0 | J46: =+B46 -> Munchen | K46: =+IF(C46="","",C46/C$52) -> 0.09090909091 | L46: =+IF(D46="","",D46/D$52) -> 0.0625 | M46: 0.1025641026 | N46: 0 | O46: 0 | Q46: =SUM(K46:O46)-K52 -> 0.2559731935 | R46: =IF(Q46=0,"",Q46/(5-$P$52)) -> 0.08532439782 | T46: λ | U46: n | V46: IC | W46: CR
B47: =+D45 -> London | C47: =+IF(Analisis!$C$18<>"",Bruto!J15,"") -> 3 | D47: =+IF(Analisis!$C$18<>"",Bruto!K15,"") -> 1 | E47: =+IF(Analisis!$C$18<>"",Bruto!L15,"") -> 0.25 | F47: =+IF(Analisis!$C$18<>"",Bruto!M15,"") -> 0 | G47: =+IF(Analisis!$C$18<>"",Bruto!N15,"") -> 0 | J47: =+B47 -> London | K47: =+IF(C47="","",C47/C$52) -> 0.2727272727 | L47: 0.1875 | M47: 0.1794871795 | N47: 0 | O47: 0 | Q47: =SUM(K47:O47)-L52 -> 0.6397144522 | R47: =IF(Q47=0,"",Q47/(5-$P$52)) -> 0.2132381507 | T47: =+SUMPRODUCT(C52:G52,K53:O53) -> 3.052840678 | U47: =+COUNTIF(C46:G46,">0") -> 3 | V47: =+(T47-U47)/(U47-1) -> 0.02642033892 | W47: =+IF(V47=0,0,+V47/HLOOKUP(U47,Bruto!D1:M2,2,FALSE)) -> 0.05080834408 | Y47: =+IF(AA63="","",IF(W48>0.1,"La matriz es inconsistente, se debe volver a evaluar","La matriz es consistente")) -> La matriz es consistente
B48: =+E45 -> Praga | C48: =+IF(Analisis!$C$18<>"",Bruto!J16,"") -> 7 | D48: =+IF(Analisis!$C$18<>"",Bruto!K16,"") -> 4 | E48: =+IF(Analisis!$C$18<>"",Bruto!L16,"") -> 1 | F48: =+IF(Analisis!$C$18<>"",Bruto!M16,"") -> 0 | G48: =+IF(Analisis!$C$18<>"",Bruto!N16,"") -> 0 | J48: =+B48 -> Praga | K48: 0.6363636364 | L48: 0.75 | M48: 0.7179487179 | N48: 0 | O48: 0 | Q48: =SUM(K48:O48)-M52 -> 2.104312354 | R48: 0.7014374514 | W48: =+IF(W47<0,0,W47) -> 0.05080834408
B49: =+F45 -> 0 | C49: =+IF(Analisis!$C$18<>"",Bruto!J17,"") -> 0 | D49: =+IF(Analisis!$C$18<>"",Bruto!K17,"") -> 0 | E49: =+IF(Analisis!$C$18<>"",Bruto!L17,"") -> 0 | F49: =+IF(Analisis!$C$18<>"",Bruto!M17,"") -> 1 | G49: =+IF(Analisis!$C$18<>"",Bruto!N17,"") -> 0 | J49: 0 | K49: 0 | L49: 0 | M49: 0 | N49: 1 | O49: 0 | Q49: =SUM(K49:O49)-N52 -> 0 | T49: 1 | U49: 0 | V49: 0 | W49: 0 | X49: 0 | Z49: =+IF(C46="","",C46:G50-W56*T49:X53) -> -2.032366553 | AA49: 0.3333333333 | AB49: 0.1428571429 | AC49: 0 | AD49: 0
B50: =+G45 -> 0 | C50: =+IF(Analisis!$C$18<>"",Bruto!J18,"") -> 0 | D50: =+IF(Analisis!$C$18<>"",Bruto!K18,"") -> 0 | E50: =+IF(Analisis!$C$18<>"",Bruto!L18,"") -> 0 | F50: =+IF(Analisis!$C$18<>"",Bruto!M18,"") -> 0 | G50: =+IF(Analisis!$C$18<>"",Bruto!N18,"") -> 1 | J50: 0 | K50: 0 | L50: 0 | M50: 0 | N50: 0 | O50: 1 | Q50: =SUM(K50:O50)-O52 -> 0 | T50: 0 | U50: 1 | V50: 0 | W50: 0 | X50: 0 | Z50: 3 | AA50: -2.032366553 | AB50: 0.25 | AC50: 0 | AD50: 0
T51: 0 | U51: 0 | V51: 1 | W51: 0 | X51: 0 | Z51: 7 | AA51: 4 | AB51: -2.032366553 | AC51: 0 | AD51: 0
C52: =SUM(C46:C50) -> 11 | D52: =SUM(D46:D50) -> 5.333333333 | E52: 1.392857143 | F52: 1 | G52: 1 | K52: =+IF(K46=1,1,0) -> 0 | L52: =+IF(L47=1,1,0) -> 0 | M52: =+IF(M48=1,1,0) -> 0 | N52: =+IF(N49=1,1,0) -> 1 | O52: =+IF(O50=1,1,0) -> 1 | P52: =SUM(K52:O52) -> 2 | T52: 0 | U52: 0 | V52: 0 | W52: 1 | X52: 0 | Z52: 0 | AA52: 0 | AB52: 0 | AC52: -2.032366553 | AD52: 0
K53: =+R46 -> 0.08532439782 | L53: =+R47 -> 0.2132381507 | M53: =+R48 -> 0.7014374514 | N53: =+R49 ->  | O53: =+R50 ->  | T53: 0 | U53: 0 | V53: 0 | W53: 0 | X53: 1 | Z53: 0 | AA53: 0 | AB53: 0 | AC53: 0 | AD53: -2.032366553
B54: Metodo Exacto
J55: =SUM(J57:J61) -> 1
C56: =+Analisis!$E$18 -> Munchen | D56: =+Analisis!$E$19 -> London | E56: =+Analisis!$E$20 -> Praga | F56: =+Analisis!$E$21 -> 0 | G56: =+Analisis!$E$22 -> 0 | M56: =+Analisis!$E$18 -> Munchen | N56: =+Analisis!$E$19 -> London | O56: =+Analisis!$E$20 -> Praga | P56: =+Analisis!$E$21 -> 0 | Q56: =+Analisis!$E$22 -> 0 | V56: λ | W56: 3.032366553 | Z56: 2 | AA56: deter | AB56: =IF($C$57="","",MDETERM(Z49:AA50)) -> 3.130513806
B57: =+C56 -> Munchen | C57: =+IF(C46="","",MMULT(C46:G50,C46:G50)) -> 3 | D57: 1.238095238 | E57: 0.369047619 | F57: 0 | G57: 0 | I57: =+IF(OR(C57="",C57=0),"",SUM(C57:G57)) -> 4.607142857 | J57: =+IF(I57="","",I57/$I$62) -> 0.08283390411 | L57: =+M56 -> Munchen | M57: =+IF(C57="","",MMULT(C57:G61,C57:G61)) -> 28.19047619 | N57: 11.24206349 | O57: 3.363945578 | P57: 0 | Q57: 0 | S57: =+IF(OR(M57="",M57=0),"",SUM(M57:Q57)) -> 42.79648526 | T57: =+IF(S57="","",S57/$S$62) -> 0.08415796745 | V57: deter | W57: =IF(C46="","",VLOOKUP(U47,Z56:AB59,3,FALSE)) -> 6.009019931e-07 | Z57: 3 | AA57: deter | AB57: =IF($C$57="","",MDETERM(Z49:AB51)) -> 6.009019931e-07
B58: =+D56 -> London | C58: 7.75 | D58: 3 | E58: 0.9285714286 | F58: 0 | G58: 0 | I58: 11.67857143 | J58: =+IF(I58="","",I58/$I$62) -> 0.2099743151 | L58: =+N56 -> London | M58: 70.64285714 | N58: 28.19047619 | O58: 8.431547619 | P58: 0 | Q58: 0 | S58: 107.264881 | T58: =+IF(S58="","",S58/$S$62) -> 0.2109330779 | Z58: 4 | AA58: deter | AB58: =IF($C$57="","",MDETERM(Z49:AC52)) -> -1.221253112e-06
B59: =+E56 -> Praga | C59: 26 | D59: 10.33333333 | E59: 3 | F59: 0 | G59: 0 | I59: =+IF(OR(C59="",C59=0),"",SUM(C59:G59)) -> 39.33333333 | J59: 0.7071917808 | L59: =+O56 -> Praga | M59: 236.0833333 | N59: 94.19047619 | O59: 28.19047619 | P59: 0 | Q59: 0 | S59: 358.4642857 | T59: 0.7049089547 | Z59: 5 | AA59: deter | AB59: =IF($C$57="","",MDETERM(Z49:AD53)) -> 2.482033979e-06
B60: =+F56 -> 0 | C60: 0 | D60: 0 | E60: 0 | F60: 1 | G60: 0 | I60: =+IF(OR(C60="",C60=0),"",SUM(C60:G60)) ->  | L60: =+P56 -> 0 | M60: 0 | N60: 0 | O60: 0 | P60: 1 | Q60: 0
B61: =+G56 -> 0 | C61: 0 | D61: 0 | E61: 0 | F61: 0 | G61: 1 | L61: =+Q56 -> 0 | M61: 0 | N61: 0 | O61: 0 | P61: 0 | Q61: 1
I62: =SUM(I57:I61) -> 55.61904762 | S62: =SUM(S57:S61) -> 508.5256519 | V62: λ | W62: n | X62: IC | Y62: CR
V63: =+W56 -> 3.032366553 | W63: =+COUNTIF(Z49:Z53,"<>0") -> 3 | X63: =+(V63-W63)/(W63-1) -> 0.01618327651 | Y63: =+X63/+HLOOKUP(W63,Bruto!D1:M2,2,FALSE) -> 0.0311216856 | AA63: =+IF(Y63<0,"",IF(Y64>0.1,"La matriz es inconsistente, se debe volver a evaluar","La matriz es consistente")) -> La matriz es consistente
C64: =+Analisis!$E$18 -> Munchen | D64: =+Analisis!$E$19 -> London | E64: =+Analisis!$E$20 -> Praga | F64: =+Analisis!$E$21 -> 0 | G64: =+Analisis!$E$22 -> 0 | M64: =+Analisis!$E$18 -> Munchen | N64: =+Analisis!$E$19 -> London | O64: =+Analisis!$E$20 -> Praga | P64: =+Analisis!$E$21 -> 0 | Q64: =+Analisis!$E$22 -> 0 | Y64: =+IF(Y63<0,0,Y63) -> 0.0311216856
B65: =+C64 -> Munchen | C65: =+IF(M57="","",MMULT(M57:Q61,M57:Q61)) -> 2383.045918 | D65: 950.6898823 | E65: 284.4504491 | F65: 0 | G65: 0 | I65: =+IF(OR(C65="",C65=0),"",SUM(C65:G65)) -> 3618.18625 | J65: =+IF(I65="","",I65/$I$70) -> 0.08414414995 | L65: =+M64 -> Munchen | M65: =+IF(C65="","",MMULT(C65:G69,C65:G69)) -> 17036722.74 | N65: 6796612.912 | O65: 2033575.403 | P65: 0 | Q65: 0 | S65: =+IF(OR(M65="",M65=0),"",SUM(M65:Q65)) -> 25866911.05 | T65: =+IF(S65="","",S65/$S$70) -> 0.08414414848
B66: =+D64 -> London | C66: 5973.459432 | D66: 2383.045918 | E66: 713.0174117 | F66: 0 | G66: 0 | I66: 9069.522762 | J66: =+IF(I66="","",I66/$I$70) -> 0.2109198451 | L66: =+N64 -> London | M66: 42705083.46 | N66: 17036722.74 | O66: 5097459.684 | P66: 0 | Q66: 0 | S66: 64839265.88 | T66: =+IF(S66="","",S66/$S$70) -> 0.2109198429
B67: =+E64 -> Praga | C67: 19964.48753 | D67: 7964.612576 | E67: 2383.045918 | F67: 0 | G67: 0 | I67: 30312.14602 | J67: 0.704936005 | L67: =+O64 -> Praga | M67: 142728871.1 | N67: 56940111.28 | O67: 17036722.74 | P67: 0 | Q67: 0 | S67: 216705705.2 | T67: 0.7049360086
B68: =+F64 -> 0 | C68: 0 | D68: 0 | E68: 0 | F68: 1 | G68: 0 | L68: =+P64 -> 0 | M68: 0 | N68: 0 | O68: 0 | P68: 1 | Q68: 0
B69: =+G64 -> 0 | C69: 0 | D69: 0 | E69: 0 | F69: 0 | G69: 1 | L69: =+Q64 -> 0 | M69: 0 | N69: 0 | O69: 0 | P69: 0 | Q69: 1
I70: =SUM(I65:I69) -> 42999.85503 | S70: =SUM(S65:S69) -> 307411882.1
B72: Para | C72: =+D8 -> Costo de Vida
B74: Metodo Aproximado
R75: =SUM(R77:R81) -> 1
C76: =+Analisis!$E$18 -> Munchen | D76: =+Analisis!$E$19 -> London | E76: =+Analisis!$E$20 -> Praga | F76: =+Analisis!$E$21 -> 0 | G76: =+Analisis!$E$22 -> 0 | K76: =+C76 -> Munchen | L76: =+D76 -> London | M76: =+E76 -> Praga | N76: =+F76 -> 0 | O76: =+G76 -> 0
B77: =+C76 -> Munchen | C77: =+IF(Analisis!$C$19<>"",Bruto!O19,"") -> 1 | D77: =+IF(Analisis!$C$19<>"",Bruto!P19,"") -> 0.3333333333 | E77: =+IF(Analisis!$C$19<>"",Bruto!Q19,"") -> 4 | F77: =+IF(Analisis!$C$19<>"",Bruto!R19,"") -> 0 | G77: =+IF(Analisis!$C$19<>"",Bruto!S19,"") -> 0 | J77: =+B77 -> Munchen | K77: =+IF(C77="","",C77/C$83) -> 0.2352941176 | L77: =+IF(D77="","",D77/D$83) -> 0.2307692308 | M77: 0.2857142857 | N77: 0 | O77: 0 | Q77: =SUM(K77:O77)-K83 -> 0.7517776341 | R77: =IF(Q77=0,"",Q77/(5-$P$83)) -> 0.2505925447 | T77: λ | U77: n | V77: IC | W77: CR
B78: =+D76 -> London | C78: =+IF(Analisis!$C$19<>"",Bruto!O20,"") -> 3 | D78: =+IF(Analisis!$C$19<>"",Bruto!P20,"") -> 1 | E78: =+IF(Analisis!$C$19<>"",Bruto!Q20,"") -> 9 | F78: =+IF(Analisis!$C$19<>"",Bruto!R20,"") -> 0 | G78: =+IF(Analisis!$C$19<>"",Bruto!S20,"") -> 0 | J78: =+B78 -> London | K78: =+IF(C78="","",C78/C$83) -> 0.7058823529 | L78: 0.6923076923 | M78: 0.6428571429 | N78: 0 | O78: 0 | Q78: =SUM(K78:O78)-L83 -> 2.041047188 | R78: =IF(Q78=0,"",Q78/(5-$P$83)) -> 0.6803490627 | T78: =+SUMPRODUCT(C83:G83,K84:O84) -> 3.014562235 | U78: =+COUNTIF(C77:G77,">0") -> 3 | V78: =+(T78-U78)/(U78-1) -> 0.007281117575 | W78: =+IF(V78=0,0,+V78/HLOOKUP(U78,Bruto!D1:M2,2,FALSE)) -> 0.01400214918 | Y78: =+IF(AA94="","",IF(W79>0.1,"La matriz es inconsistente, se debe volver a evaluar","La matriz es consistente")) -> La matriz es consistente
B79: =+E76 -> Praga | C79: =+IF(Analisis!$C$19<>"",Bruto!O21,"") -> 0.25 | D79: =+IF(Analisis!$C$19<>"",Bruto!P21,"") -> 0.1111111111 | E79: =+IF(Analisis!$C$19<>"",Bruto!Q21,"") -> 1 | F79: =+IF(Analisis!$C$19<>"",Bruto!R21,"") -> 0 | G79: =+IF(Analisis!$C$19<>"",Bruto!S21,"") -> 0 | J79: =+B79 -> Praga | K79: 0.05882352941 | L79: 0.07692307692 | M79: 0.07142857143 | N79: 0 | O79: 0 | Q79: =SUM(K79:O79)-M83 -> 0.2071751778 | R79: 0.06905839259 | W79: =+IF(W78<0,0,W78) -> 0.01400214918
B80: =+F76 -> 0 | C80: =+IF(Analisis!$C$19<>"",Bruto!O22,"") -> 0 | D80: =+IF(Analisis!$C$19<>"",Bruto!P22,"") -> 0 | E80: =+IF(Analisis!$C$19<>"",Bruto!Q22,"") -> 0 | F80: =+IF(Analisis!$C$19<>"",Bruto!R22,"") -> 1 | G80: =+IF(Analisis!$C$19<>"",Bruto!S22,"") -> 0 | J80: 0 | K80: 0 | L80: 0 | M80: 0 | N80: 1 | O80: 0 | Q80: =SUM(K80:O80)-N83 -> 0 | T80: 1 | U80: 0 | V80: 0 | W80: 0 | X80: 0 | Z80: =+IF(C77="","",C77:G81-W87*T80:X84) -> -2.009202691 | AA80: 0.3333333333 | AB80: 4 | AC80: 0 | AD80: 0
B81: =+G76 -> 0 | C81: =+IF(Analisis!$C$19<>"",Bruto!O23,"") -> 0 | D81: =+IF(Analisis!$C$19<>"",Bruto!P23,"") -> 0 | E81: =+IF(Analisis!$C$19<>"",Bruto!Q23,"") -> 0 | F81: =+IF(Analisis!$C$19<>"",Bruto!R23,"") -> 0 | G81: =+IF(Analisis!$C$19<>"",Bruto!S23,"") -> 1 | J81: 0 | K81: 0 | L81: 0 | M81: 0 | N81: 0 | O81: 1 | Q81: =SUM(K81:O81)-O83 -> 0 | T81: 0 | U81: 1 | V81: 0 | W81: 0 | X81: 0 | Z81: 3 | AA81: -2.009202691 | AB81: 9 | AC81: 0 | AD81: 0
T82: 0 | U82: 0 | V82: 1 | W82: 0 | X82: 0 | Z82: 0.25 | AA82: 0.1111111111 | AB82: -2.009202691 | AC82: 0 | AD82: 0
C83: =SUM(C77:C81) -> 4.25 | D83: =SUM(D77:D81) -> 1.444444444 | E83: 14 | F83: 1 | G83: 1 | K83: =+IF(K77=1,1,0) -> 0 | L83: =+IF(L78=1,1,0) -> 0 | M83: =+IF(M79=1,1,0) -> 0 | N83: =+IF(N80=1,1,0) -> 1 | O83: =+IF(O81=1,1,0) -> 1 | P83: =SUM(K83:O83) -> 2 | T83: 0 | U83: 0 | V83: 0 | W83: 1 | X83: 0 | Z83: 0 | AA83: 0 | AB83: 0 | AC83: -2.009202691 | AD83: 0
K84: =+R77 -> 0.2505925447 | L84: =+R78 -> 0.6803490627 | M84: =+R79 -> 0.06905839259 | N84: =+R80 ->  | O84: =+R81 ->  | T84: 0 | U84: 0 | V84: 0 | W84: 0 | X84: 1 | Z84: 0 | AA84: 0 | AB84: 0 | AC84: 0 | AD84: -2.009202691
B85: Metodo Exacto
C87: =+Analisis!$E$18 -> Munchen | D87: =+Analisis!$E$19 -> London | E87: =+Analisis!$E$20 -> Praga | F87: =+Analisis!$E$21 -> 0 | G87: =+Analisis!$E$22 -> 0 | M87: =+Analisis!$E$18 -> Munchen | N87: =+Analisis!$E$19 -> London | O87: =+Analisis!$E$20 -> Praga | P87: =+Analisis!$E$21 -> 0 | Q87: =+Analisis!$E$22 -> 0 | V87: λ | W87: 3.009202691 | Z87: 2 | AA87: deter | AB87: =IF($C$77="","",MDETERM(Z80:AA81)) -> 3.036895453
B88: =+C87 -> Munchen | C88: =+IF(C77="","",MMULT(C77:G81,C77:G81)) -> 3 | D88: 1.111111111 | E88: 11 | F88: 0 | G88: 0 | I88: =+IF(OR(C88="",C88=0),"",SUM(C88:G88)) -> 15.11111111 | J88: =+IF(I88="","",I88/$I$93) -> 0.2497704316 | L88: =+M87 -> Munchen | M88: =+IF(C88="","",MMULT(C88:G92,C88:G92)) -> 27.33333333 | N88: 10.02777778 | O88: 99.33333333 | P88: 0 | Q88: 0 | S88: =+IF(OR(M88="",M88=0),"",SUM(M88:Q88)) -> 136.6944444 | T88: =+IF(S88="","",S88/$S$93) -> 0.2499481497 | V88: deter | W88: =IF(C77="","",VLOOKUP(U78,Z87:AB90,3,FALSE)) -> 1.991887835e-07 | Z88: 3 | AA88: deter | AB88: =IF($C$77="","",MDETERM(Z80:AB82)) -> 1.991887835e-07
B89: =+D87 -> London | C89: 8.25 | D89: 3 | E89: 30 | F89: 0 | G89: 0 | I89: 41.25 | J89: =+IF(I89="","",I89/$I$93) -> 0.6818181818 | L89: =+N87 -> London | M89: 74.5 | N89: 27.33333333 | O89: 270.75 | P89: 0 | Q89: 0 | S89: 372.5833333 | T89: =+IF(S89="","",S89/$S$93) -> 0.6812750522 | Z89: 4 | AA89: deter | AB89: =IF($C$77="","",MDETERM(Z80:AC83)) -> -4.002106399e-07
B90: =+E87 -> Praga | C90: 0.8333333333 | D90: 0.3055555556 | E90: 3 | F90: 0 | G90: 0 | I90: 4.138888889 | J90: 0.06841138659 | L90: =+O87 -> Praga | M90: 7.520833333 | N90: 2.759259259 | O90: 27.33333333 | P90: 0 | Q90: 0 | S90: 37.61342593 | T90: 0.06877679815 | Z90: 5 | AA90: deter | AB90: =IF($C$77="","",MDETERM(Z80:AD84)) -> 8.041042946e-07
B91: =+F87 -> 0 | C91: 0 | D91: 0 | E91: 0 | F91: 1 | G91: 0 | L91: =+P87 -> 0 | M91: 0 | N91: 0 | O91: 0 | P91: 1 | Q91: 0
B92: =+G87 -> 0 | C92: 0 | D92: 0 | E92: 0 | F92: 0 | G92: 1 | L92: =+Q87 -> 0 | M92: 0 | N92: 0 | O92: 0 | P92: 0 | Q92: 1
I93: =SUM(I88:I92) -> 60.5 | S93: =SUM(S88:S92) -> 546.8912037 | V93: λ | W93: n | X93: IC | Y93: CR
V94: =+W87 -> 3.009202691 | W94: =+COUNTIF(Z80:Z84,"<>0") -> 3 | X94: =+(V94-W94)/(W94-1) -> 0.004601345426 | Y94: =+X94/+HLOOKUP(W94,Bruto!D1:M2,2,FALSE) -> 0.008848741203 | AA94: =+IF(Y94<0,"",IF(Y95>0.1,"La matriz es inconsistente, se debe volver a evaluar","La matriz es consistente")) -> La matriz es consistente
C95: =+Analisis!$E$18 -> Munchen | D95: =+Analisis!$E$19 -> London | E95: =+Analisis!$E$20 -> Praga | F95: =+Analisis!$E$21 -> 0 | G95: =+Analisis!$E$22 -> 0 | M95: =+Analisis!$E$18 -> Munchen | N95: =+Analisis!$E$19 -> London | O95: =+Analisis!$E$20 -> Praga | P95: =+Analisis!$E$21 -> 0 | Q95: =+Analisis!$E$22 -> 0 | Y95: =+IF(Y94<0,0,Y94) -> 0.008848741203
B96: =+C95 -> Munchen | C96: =+IF(M88="","",MMULT(M88:Q92,M88:Q92)) -> 2241.25 | D96: 822.2716049 | E96: 8145.243056 | F96: 0 | G96: 0 | I96: =+IF(OR(C96="",C96=0),"",SUM(C96:G96)) -> 11208.76466 | J96: =+IF(I96="","",I96/$I$101) -> 0.2499474177 | L96: =+M95 -> Munchen | M96: =+IF(C96="","",MMULT(C96:G100,C96:G100)) -> 15069604.68 | N96: 5528748.703 | O96: 54766577.99 | P96: 0 | Q96: 0 | S96: =+IF(OR(M96="",M96=0),"",SUM(M96:Q96)) -> 75364931.37 | T96: =+IF(S96="","",S96/$S$101) -> 0.2499474177
B97: =+D95 -> London | C97: 6108.932292 | D97: 2241.25 | E97: 22201.33333 | F97: 0 | G97: 0 | I97: 30551.51563 | J97: =+IF(I97="","",I97/$I$101) -> 0.6812768998 | L97: =+N95 -> London | M97: 41074933.49 | N97: 15069604.68 | O97: 149276215 | P97: 0 | Q97: 0 | S97: 205420753.2 | T97: =+IF(S97="","",S97/$S$101) -> 0.6812768998
B98: =+E95 -> Praga | C98: 616.7037037 | D98: 226.2567515 | E98: 2241.25 | F98: 0 | G98: 0 | I98: 3084.210455 | J98: 0.06877568246 | L98: =+O95 -> Praga | M98: 4146561.528 | N98: 1521293.833 | O98: 15069604.68 | P98: 0 | Q98: 0 | S98: 20737460.04 | T98: 0.06877568245
B99: =+F95 -> 0 | C99: 0 | D99: 0 | E99: 0 | F99: 1 | G99: 0 | L99: =+P95 -> 0 | M99: 0 | N99: 0 | O99: 0 | P99: 1 | Q99: 0
B100: =+G95 -> 0 | C100: 0 | D100: 0 | E100: 0 | F100: 0 | G100: 1 | L100: =+Q95 -> 0 | M100: 0 | N100: 0 | O100: 0 | P100: 0 | Q100: 1
I101: =SUM(I96:I100) -> 44844.49074 | S101: =SUM(S96:S100) -> 301523144.6
B103: Para | C103: =+E8 -> Ocio
B105: Metodo Aproximado
R106: =SUM(R108:R112) -> 1
C107: =+Analisis!$E$18 -> Munchen | D107: =+Analisis!$E$19 -> London | E107: =+Analisis!$E$20 -> Praga | F107: =+Analisis!$E$21 -> 0 | G107: =+Analisis!$E$22 -> 0 | K107: =+C107 -> Munchen | L107: =+D107 -> London | M107: =+E107 -> Praga | N107: =+F107 -> 0 | O107: =+G107 -> 0
B108: =+C107 -> Munchen | C108: =+IF(Analisis!$C$20<>"",Bruto!T24,"") -> 1 | D108: =+IF(Analisis!$C$20<>"",Bruto!U24,"") -> 7 | E108: =+IF(Analisis!$C$20<>"",Bruto!V24,"") -> 3 | F108: =+IF(Analisis!$C$20<>"",Bruto!W24,"") -> 0 | G108: =+IF(Analisis!$C$20<>"",Bruto!X24,"") -> 0 | J108: =+B108 -> Munchen | K108: =+IF(C108="","",C108/C$114) -> 0.6774193548 | L108: =+IF(D108="","",D108/D$114) -> 0.5833333333 | M108: 0.7058823529 | N108: 0 | O108: 0 | Q108: =SUM(K108:O108)-K114 -> 1.966635041 | R108: =IF(Q108=0,"",Q108/(5-$P$114)) -> 0.6555450137 | T108: λ | U108: n | V108: IC | W108: CR
B109: =+D107 -> London | C109: =+IF(Analisis!$C$20<>"",Bruto!T25,"") -> 0.1428571429 | D109: =+IF(Analisis!$C$20<>"",Bruto!U25,"") -> 1 | E109: =+IF(Analisis!$C$20<>"",Bruto!V25,"") -> 0.25 | F109: =+IF(Analisis!$C$20<>"",Bruto!W25,"") -> 0 | G109: =+IF(Analisis!$C$20<>"",Bruto!X25,"") -> 0 | J109: =+B109 -> London | K109: =+IF(C109="","",C109/C$114) -> 0.09677419355 | L109: 0.08333333333 | M109: 0.05882352941 | N109: 0 | O109: 0 | Q109: =SUM(K109:O109)-L114 -> 0.2389310563 | R109: =IF(Q109=0,"",Q109/(5-$P$114)) -> 0.07964368543 | T109: =+SUMPRODUCT(C114:G114,K115:O115) -> 3.04888156 | U109: =+COUNTIF(C108:G108,">0") -> 3 | V109: =+(T109-U109)/(U109-1) -> 0.0244407799 | W109: =+IF(V109=0,0,+V109/HLOOKUP(U109,Bruto!D1:M2,2,FALSE)) -> 0.0470014998 | Y109: =+IF(AA125="","",IF(W110>0.1,"La matriz es inconsistente, se debe volver a evaluar","La matriz es consistente")) -> La matriz es consistente
B110: =+E107 -> Praga | C110: =+IF(Analisis!$C$20<>"",Bruto!T26,"") -> 0.3333333333 | D110: =+IF(Analisis!$C$20<>"",Bruto!U26,"") -> 4 | E110: =+IF(Analisis!$C$20<>"",Bruto!V26,"") -> 1 | F110: =+IF(Analisis!$C$20<>"",Bruto!W26,"") -> 0 | G110: =+IF(Analisis!$C$20<>"",Bruto!X26,"") -> 0 | J110: =+B110 -> Praga | K110: 0.2258064516 | L110: 0.3333333333 | M110: 0.2352941176 | N110: 0 | O110: 0 | Q110: =SUM(K110:O110)-M114 -> 0.7944339026 | R110: 0.2648113009 | W110: =+IF(W109<0,0,W109) -> 0.0470014998
B111: =+F107 -> 0 | C111: =+IF(Analisis!$C$20<>"",Bruto!T27,"") -> 0 | D111: =+IF(Analisis!$C$20<>"",Bruto!U27,"") -> 0 | E111: =+IF(Analisis!$C$20<>"",Bruto!V27,"") -> 0 | F111: =+IF(Analisis!$C$20<>"",Bruto!W27,"") -> 1 | G111: =+IF(Analisis!$C$20<>"",Bruto!X27,"") -> 0 | J111: 0 | K111: 0 | L111: 0 | M111: 0 | N111: 1 | O111: 0 | Q111: =SUM(K111:O111)-N114 -> 0 | T111: 1 | U111: 0 | V111: 0 | W111: 0 | X111: 0 | Z111: =+IF(C108="","",C108:G112-W118*T111:X115) -> -2.032366553 | AA111: 7 | AB111: 3 | AC111: 0 | AD111: 0
B112: =+G107 -> 0 | C112: =+IF(Analisis!$C$20<>"",Bruto!T28,"") -> 0 | D112: =+IF(Analisis!$C$20<>"",Bruto!U28,"") -> 0 | E112: =+IF(Analisis!$C$20<>"",Bruto!V28,"") -> 0 | F112: =+IF(Analisis!$C$20<>"",Bruto!W28,"") -> 0 | G112: =+IF(Analisis!$C$20<>"",Bruto!X28,"") -> 1 | J112: 0 | K112: 0 | L112: 0 | M112: 0 | N112: 0 | O112: 1 | Q112: =SUM(K112:O112)-O114 -> 0 | T112: 0 | U112: 1 | V112: 0 | W112: 0 | X112: 0 | Z112: 0.1428571429 | AA112: -2.032366553 | AB112: 0.25 | AC112: 0 | AD112: 0
T113: 0 | U113: 0 | V113: 1 | W113: 0 | X113: 0 | Z113: 0.3333333333 | AA113: 4 | AB113: -2.032366553 | AC113: 0 | AD113: 0
C114: =SUM(C108:C112) -> 1.476190476 | D114: =SUM(D108:D112) -> 12 | E114: 4.25 | F114: 1 | G114: 1 | K114: =+IF(K108=1,1,0) -> 0 | L114: =+IF(L109=1,1,0) -> 0 | M114: =+IF(M110=1,1,0) -> 0 | N114: =+IF(N111=1,1,0) -> 1 | O114: =+IF(O112=1,1,0) -> 1 | P114: =SUM(K114:O114) -> 2 | T114: 0 | U114: 0 | V114: 0 | W114: 1 | X114: 0 | Z114: 0 | AA114: 0 | AB114: 0 | AC114: -2.032366553 | AD114: 0
K115: =+R108 -> 0.6555450137 | L115: =+R109 -> 0.07964368543 | M115: =+R110 -> 0.2648113009 | N115: =+R111 ->  | O115: =+R112 ->  | T115: 0 | U115: 0 | V115: 0 | W115: 0 | X115: 1 | Z115: 0 | AA115: 0 | AB115: 0 | AC115: 0 | AD115: -2.032366553
B116: Metodo Exacto
C118: =+Analisis!$E$18 -> Munchen | D118: =+Analisis!$E$19 -> London | E118: =+Analisis!$E$20 -> Praga | F118: =+Analisis!$E$21 -> 0 | G118: =+Analisis!$E$22 -> 0 | M118: =+Analisis!$E$18 -> Munchen | N118: =+Analisis!$E$19 -> London | O118: =+Analisis!$E$20 -> Praga | P118: =+Analisis!$E$21 -> 0 | Q118: =+Analisis!$E$22 -> 0 | V118: λ | W118: 3.032366553 | Z118: 2 | AA118: deter | AB118: =IF($C$77="","",MDETERM(Z111:AA112)) -> 3.130513806
B119: =+C118 -> Munchen | C119: =+IF(C108="","",MMULT(C108:G112,C108:G112)) -> 3 | D119: 26 | E119: 7.75 | F119: 0 | G119: 0 | I119: =+IF(OR(C119="",C119=0),"",SUM(C119:G119)) -> 36.75 | J119: =+IF(I119="","",I119/$I$124) -> 0.660744863 | L119: =+M118 -> Munchen | M119: =+IF(C119="","",MMULT(C119:G123,C119:G123)) -> 28.19047619 | N119: 236.0833333 | O119: 70.64285714 | P119: 0 | Q119: 0 | S119: =+IF(OR(M119="",M119=0),"",SUM(M119:Q119)) -> 334.9166667 | T119: =+IF(S119="","",S119/$S$124) -> 0.6586032885 | V119: deter | W119: =IF(C108="","",VLOOKUP(U109,Z118:AB121,3,FALSE)) -> 6.009019968e-07 | Z119: 3 | AA119: deter | AB119: =IF($C$77="","",MDETERM(Z111:AB113)) -> 6.009019968e-07
B120: =+D118 -> London | C120: 0.369047619 | D120: 3 | E120: 0.9285714286 | F120: 0 | G120: 0 | I120: 4.297619048 | J120: =+IF(I120="","",I120/$I$124) -> 0.07726883562 | L120: =+N118 -> London | M120: 3.363945578 | N120: 28.19047619 | O120: 8.431547619 | P120: 0 | Q120: 0 | S120: 39.98596939 | T120: =+IF(S120="","",S120/$S$124) -> 0.07863117472 | Z120: 4 | AA120: deter | AB120: =IF($C$77="","",MDETERM(Z111:AC114)) -> -1.22125312e-06
B121: =+E118 -> Praga | C121: 1.238095238 | D121: 10.33333333 | E121: 3 | F121: 0 | G121: 0 | I121: 14.57142857 | J121: 0.2619863014 | L121: =+O118 -> Praga | M121: 11.24206349 | N121: 94.19047619 | O121: 28.19047619 | P121: 0 | Q121: 0 | S121: 133.6230159 | T121: 0.2627655367 | Z121: 5 | AA121: deter | AB121: =IF($C$77="","",MDETERM(Z111:AD115)) -> 2.482033994e-06
B122: =+F118 -> 0 | C122: 0 | D122: 0 | E122: 0 | F122: 1 | G122: 0 | L122: =+P118 -> 0 | M122: 0 | N122: 0 | O122: 0 | P122: 1 | Q122: 0
B123: =+G118 -> 0 | C123: 0 | D123: 0 | E123: 0 | F123: 0 | G123: 1 | L123: =+Q118 -> 0 | M123: 0 | N123: 0 | O123: 0 | P123: 0 | Q123: 1
I124: =SUM(I119:I123) -> 55.61904762 | S124: =SUM(S119:S123) -> 508.5256519 | V124: λ | W124: n | X124: IC | Y124: CR
V125: =+W118 -> 3.032366553 | W125: =+COUNTIF(Z111:Z115,"<>0") -> 3 | X125: =+(V125-W125)/(W125-1) -> 0.01618327651 | Y125: =+X125/+HLOOKUP(W125,Bruto!D1:M2,2,FALSE) -> 0.0311216856 | AA125: =+IF(Y12<0,"",IF(Y126>0.1,"La matriz es inconsistente, se debe volver a evaluar","La matriz es consistente")) -> La matriz es consistente
C126: =+Analisis!$E$18 -> Munchen | D126: =+Analisis!$E$19 -> London | E126: =+Analisis!$E$20 -> Praga | F126: =+Analisis!$E$21 -> 0 | G126: =+Analisis!$E$22 -> 0 | M126: =+Analisis!$E$18 -> Munchen | N126: =+Analisis!$E$19 -> London | O126: =+Analisis!$E$20 -> Praga | P126: =+Analisis!$E$21 -> 0 | Q126: =+Analisis!$E$22 -> 0 | Y126: =+IF(Y125<0,0,Y125) -> 0.0311216856
B127: =+C126 -> Munchen | C127: =+IF(M119="","",MMULT(M119:Q123,M119:Q123)) -> 2383.045918 | D127: 19964.48753 | E127: 5973.459432 | F127: 0 | G127: 0 | I127: =+IF(OR(C127="",C127=0),"",SUM(C127:G127)) -> 28320.99288 | J127: =+IF(I127="","",I127/$I$132) -> 0.6586299618 | L127: =+M126 -> Munchen | M127: =+IF(C127="","",MMULT(C127:G131,C127:G131)) -> 17036722.74 | N127: 142728871.1 | O127: 42705083.46 | P127: 0 | Q127: 0 | S127: =+IF(OR(M127="",M127=0),"",SUM(M127:Q127)) -> 202470677.3 | T127: =+IF(S127="","",S127/$S$132) -> 0.6586299656
B128: =+D126 -> London | C128: 284.4504491 | D128: 2383.045918 | E128: 713.0174117 | F128: 0 | G128: 0 | I128: 3380.513779 | J128: =+IF(I128="","",I128/$I$132) -> 0.07861686456 | L128: =+N126 -> London | M128: 2033575.403 | N128: 17036722.74 | O128: 5097459.684 | P128: 0 | Q128: 0 | S128: 24167757.82 | T128: =+IF(S128="","",S128/$S$132) -> 0.07861686302
B129: =+E126 -> Praga | C129: 950.6898823 | D129: 7964.612576 | E129: 2383.045918 | F129: 0 | G129: 0 | I129: 11298.34838 | J129: 0.2627531736 | L129: =+O126 -> Praga | M129: 6796612.912 | N129: 56940111.28 | O129: 17036722.74 | P129: 0 | Q129: 0 | S129: 80773446.93 | T129: 0.2627531713
B130: =+F126 -> 0 | C130: 0 | D130: 0 | E130: 0 | F130: 1 | G130: 0 | L130: =+P126 -> 0 | M130: 0 | N130: 0 | O130: 0 | P130: 1 | Q130: 0
B131: =+G126 -> 0 | C131: 0 | D131: 0 | E131: 0 | F131: 0 | G131: 1 | L131: =+Q126 -> 0 | M131: 0 | N131: 0 | O131: 0 | P131: 0 | Q131: 1
I132: =SUM(I127:I131) -> 42999.85503 | S132: =SUM(S127:S131) -> 307411882.1
B134: Para | C134: =+F8 -> 0
B136: Metodo Aproximado
R137: =SUM(R139:R143) -> 0
C138: =+Analisis!$E$18 -> Munchen | D138: =+Analisis!$E$19 -> London | E138: =+Analisis!$E$20 -> Praga | F138: =+Analisis!$E$21 -> 0 | G138: =+Analisis!$E$22 -> 0 | K138: =+Analisis!$E$18 -> Munchen | L138: =+Analisis!$E$19 -> London | M138: =+Analisis!$E$20 -> Praga | N138: =+Analisis!$E$21 -> 0 | O138: =+Analisis!$E$22 -> 0
B139: =+C138 -> Munchen | C139: =+IF(Analisis!$C$21<>"",Bruto!Y29,"") ->  | D139: =+IF(Analisis!$C$21<>"",Bruto!Z29,"") ->  | E139: =+IF(Analisis!$C$21<>"",Bruto!AA29,"") ->  | F139: =+IF(Analisis!$C$21<>"",Bruto!AB29,"") ->  | G139: =+IF(Analisis!$C$21<>"",Bruto!AC29,"") ->  | J139: =+K138 -> Munchen | K139: =+IF(C139="","",C139/C$145) ->  | L139: =+IF(D139="","",D139/D$145) ->  | Q139: =SUM(K139:O139)-K145 -> 0 | R139: =IF(Q139=0,"",Q139/(5-$P$114)) ->  | T139: λ | U139: n | V139: IC | W139: CR
B140: =+D138 -> London | C140: =+IF(Analisis!$C$21<>"",Bruto!Y30,"") ->  | D140: =+IF(Analisis!$C$21<>"",Bruto!Z30,"") ->  | E140: =+IF(Analisis!$C$21<>"",Bruto!AA30,"") ->  | F140: =+IF(Analisis!$C$21<>"",Bruto!AB30,"") ->  | G140: =+IF(Analisis!$C$21<>"",Bruto!AC30,"") ->  | J140: =+L138 -> London | K140: =+IF(C140="","",C140/C$145) ->  | Q140: =SUM(K140:O140)-L145 -> 0 | R140: =IF(Q140=0,"",Q140/(5-$P$114)) ->  | T140: =+SUMPRODUCT(C145:G145,K146:O146) -> 0 | U140: =+COUNTIF(C139:G139,">0") -> 0 | V140: =+(T140-U140)/(U140-1) -> 0 | W140: =+IF(V140=0,0,+V140/HLOOKUP(U140,Bruto!D1:M2,2,FALSE)) -> 0 | Y140: =+IF(AA156="","",IF(W141>0.1,"La matriz es inconsistente, se debe volver a evaluar","La matriz es consistente")) -> 
B141: =+E138 -> Praga | C141: =+IF(Analisis!$C$21<>"",Bruto!Y31,"") ->  | D141: =+IF(Analisis!$C$21<>"",Bruto!Z31,"") ->  | E141: =+IF(Analisis!$C$21<>"",Bruto!AA31,"") ->  | F141: =+IF(Analisis!$C$21<>"",Bruto!AB31,"") ->  | G141: =+IF(Analisis!$C$21<>"",Bruto!AC31,"") ->  | J141: =+M138 -> Praga | Q141: =SUM(K141:O141)-M145 -> 0 | W141: =+IF(W140<0,0,W140) -> 0
B142: =+F138 -> 0 | C142: =+IF(Analisis!$C$21<>"",Bruto!Y32,"") ->  | D142: =+IF(Analisis!$C$21<>"",Bruto!Z32,"") ->  | E142: =+IF(Analisis!$C$21<>"",Bruto!AA32,"") ->  | F142: =+IF(Analisis!$C$21<>"",Bruto!AB32,"") ->  | G142: =+IF(Analisis!$C$21<>"",Bruto!AC32,"") ->  | J142: =+N138 -> 0 | Q142: =SUM(K142:O142)-N145 -> 0 | T142: 1 | U142: 0 | V142: 0 | W142: 0 | X142: 0 | Z142: =+IF(C139="","",C139:G143-W149*T142:X146) -> 
B143: =+G138 -> 0 | C143: =+IF(Analisis!$C$21<>"",Bruto!Y33,"") ->  | D143: =+IF(Analisis!$C$21<>"",Bruto!Z33,"") ->  | E143: =+IF(Analisis!$C$21<>"",Bruto!AA33,"") ->  | F143: =+IF(Analisis!$C$21<>"",Bruto!AB33,"") ->  | G143: =+IF(Analisis!$C$21<>"",Bruto!AC33,"") ->  | J143: =+O138 -> 0 | Q143: =SUM(K143:O143)-O145 -> 0 | T143: 0 | U143: 1 | V143: 0 | W143: 0 | X143: 0
T144: 0 | U144: 0 | V144: 1 | W144: 0 | X144: 0
C145: =SUM(C139:C143) -> 0 | D145: =SUM(D139:D143) -> 0 | E145: 0 | F145: 0 | G145: 0 | K145: =+IF(K139=1,1,0) -> 0 | L145: =+IF(L140=1,1,0) -> 0 | M145: =+IF(M141=1,1,0) -> 0 | N145: =+IF(N142=1,1,0) -> 0 | O145: =+IF(O143=1,1,0) -> 0 | P145: =SUM(K145:O145) -> 0 | T145: 0 | U145: 0 | V145: 0 | W145: 1 | X145: 0
K146: =+R139 ->  | L146: =+R140 ->  | M146: =+R141 ->  | N146: =+R142 ->  | O146: =+R143 ->  | T146: 0 | U146: 0 | V146: 0 | W146: 0 | X146: 1
B147: Metodo Exacto
C149: =+Analisis!$E$18 -> Munchen | D149: =+Analisis!$E$19 -> London | E149: =+Analisis!$E$20 -> Praga | F149: =+Analisis!$E$21 -> 0 | G149: =+Analisis!$E$22 -> 0 | M149: =+Analisis!$E$18 -> Munchen | N149: =+Analisis!$E$19 -> London | O149: =+Analisis!$E$20 -> Praga | P149: =+Analisis!$E$21 -> 0 | Q149: =+Analisis!$E$22 -> 0 | V149: λ | W149: 3.024594997 | Z149: 2 | AA149: deter | AB149: =IF($C$77="","",MDETERM(Z142:AA143)) -> 
B150: =+C149 -> Munchen | C150: =+IF(C139="","",MMULT(C139:G143,C139:G143)) ->  | I150: =+IF(OR(C150="",C150=0),"",SUM(C150:G150)) ->  | J150: =+IF(I150="","",I150/$I$155) ->  | L150: =+M149 -> Munchen | M150: =+IF(C150="","",MMULT(C150:G154,C150:G154)) ->  | S150: =+IF(OR(M150="",M150=0),"",SUM(M150:Q150)) ->  | T150: =+IF(S150="","",S150/$S$155) ->  | V150: deter | W150: =IF(C139="","",VLOOKUP(U140,Z149:AB152,3,FALSE)) ->  | Z150: 3 | AA150: deter | AB150: =IF($C$77="","",MDETERM(Z142:AB144)) -> 
B151: =+D149 -> London | J151: =+IF(I151="","",I151/$I$155) ->  | L151: =+N149 -> London | T151: =+IF(S151="","",S151/$S$155) ->  | Z151: 4 | AA151: deter | AB151: =IF($C$77="","",MDETERM(Z142:AC145)) -> 
B152: =+E149 -> Praga | L152: =+O149 -> Praga | Z152: 5 | AA152: deter | AB152: =IF($C$77="","",MDETERM(Z142:AD146)) -> 
B153: =+F149 -> 0 | L153: =+P149 -> 0
B154: =+G149 -> 0 | L154: =+Q149 -> 0
I155: =SUM(I150:I154) -> 0 | S155: =SUM(S150:S154) -> 0 | V155: λ | W155: n | X155: IC | Y155: CR
V156: =+W149 -> 3.024594997 | W156: =+COUNTIF(Z142:Z146,"<>0") -> 5 | X156: =+(V156-W156)/(W156-1) -> -0.4938512508 | Y156: =+X156/+HLOOKUP(W156,Bruto!D1:M2,2,FALSE) -> -0.4449110367 | AA156: =+IF(Y156<0,"",IF(Y157>0.1,"La matriz es inconsistente, se debe volver a evaluar","La matriz es consistente")) -> 
C157: =+Analisis!$E$18 -> Munchen | D157: =+Analisis!$E$19 -> London | E157: =+Analisis!$E$20 -> Praga | F157: =+Analisis!$E$21 -> 0 | G157: =+Analisis!$E$22 -> 0 | M157: =+Analisis!$E$18 -> Munchen | N157: =+Analisis!$E$19 -> London | O157: =+Analisis!$E$20 -> Praga | P157: =+Analisis!$E$21 -> 0 | Q157: =+Analisis!$E$22 -> 0 | Y157: =+IF(Y156<0,0,Y156) -> 0
B158: =+C157 -> Munchen | C158: =+IF(M150="","",MMULT(M150:Q154,M150:Q154)) ->  | I158: =+IF(OR(C158="",C158=0),"",SUM(C158:G158)) ->  | J158: =+IF(I158="","",I158/$I$163) ->  | L158: =+M157 -> Munchen | M158: =+IF(C158="","",MMULT(C158:G162,C158:G162)) ->  | S158: =+IF(OR(M158="",M158=0),"",SUM(M158:Q158)) ->  | T158: =+IF(S158="","",S158/$S$163) -> 
B159: =+D157 -> London | J159: =+IF(I159="","",I159/$I$163) ->  | L159: =+N157 -> London | T159: =+IF(S159="","",S159/$S$163) -> 
B160: =+E157 -> Praga | L160: =+O157 -> Praga
B161: =+F157 -> 0 | L161: =+P157 -> 0
B162: =+G157 -> 0 | L162: =+Q157 -> 0
I163: =SUM(I158:I162) -> 0 | S163: =SUM(S158:S162) -> 0
B165: Para | C165: =+G8 -> 0
B167: Metodo Aproximado
C169: =+Analisis!$E$18 -> Munchen | D169: =+Analisis!$E$19 -> London | E169: =+Analisis!$E$20 -> Praga | F169: =+Analisis!$E$21 -> 0 | G169: =+Analisis!$E$22 -> 0 | K169: =+Analisis!$E$18 -> Munchen | L169: =+Analisis!$E$19 -> London | M169: =+Analisis!$E$20 -> Praga | N169: =+Analisis!$E$21 -> 0 | O169: =+Analisis!$E$22 -> 0
B170: =+C169 -> Munchen | C170: =+IF(Analisis!$C$22<>"",Bruto!AD34,"") ->  | D170: =+IF(Analisis!$C$22<>"",Bruto!AE34,"") ->  | E170: =+IF(Analisis!$C$22<>"",Bruto!AF34,"") ->  | F170: =+IF(Analisis!$C$22<>"",Bruto!AG34,"") ->  | G170: =+IF(Analisis!$C$22<>"",Bruto!AH34,"") ->  | J170: =+K169 -> Munchen | K170: =+IF(C170="","",C170/C$176) ->  | L170: =+IF(D170="","",D170/D$176) ->  | Q170: =SUM(K170:O170)-K176 -> 0 | R170: =IF(Q170=0,"",Q170/(5-$P$114)) ->  | T170: λ | U170: n | V170: IC | W170: CR
B171: =+D169 -> London | C171: =+IF(Analisis!$C$22<>"",Bruto!AD35,"") ->  | D171: =+IF(Analisis!$C$22<>"",Bruto!AE35,"") ->  | E171: =+IF(Analisis!$C$22<>"",Bruto!AF35,"") ->  | F171: =+IF(Analisis!$C$22<>"",Bruto!AG35,"") ->  | G171: =+IF(Analisis!$C$22<>"",Bruto!AH35,"") ->  | J171: =+L169 -> London | K171: =+IF(C171="","",C171/C$176) ->  | Q171: =SUM(K171:O171)-L176 -> 0 | R171: =IF(Q171=0,"",Q171/(5-$P$114)) ->  | T171: =+SUMPRODUCT(C176:G176,K177:O177) -> 0 | U171: =+COUNTIF(C170:G170,">0") -> 0 | V171: =+(T171-U171)/(U171-1) -> 0 | W171: =+IF(V171=0,0,+V171/HLOOKUP(U171,Bruto!D1:M2,2,FALSE)) -> 0 | Y171: =+IF(AA187="","",IF(W172>0.1,"La matriz es inconsistente, se debe volver a evaluar","La matriz es consistente")) -> 
B172: =+E169 -> Praga | C172: =+IF(Analisis!$C$22<>"",Bruto!AD36,"") ->  | D172: =+IF(Analisis!$C$22<>"",Bruto!AE36,"") ->  | E172: =+IF(Analisis!$C$22<>"",Bruto!AF36,"") ->  | F172: =+IF(Analisis!$C$22<>"",Bruto!AG36,"") ->  | G172: =+IF(Analisis!$C$22<>"",Bruto!AH36,"") ->  | J172: =+M169 -> Praga | Q172: =SUM(K172:O172)-M176 -> 0 | W172: =+IF(W171<0,0,W171) -> 0
B173: =+F169 -> 0 | C173: =+IF(Analisis!$C$22<>"",Bruto!AD37,"") ->  | D173: =+IF(Analisis!$C$22<>"",Bruto!AE37,"") ->  | E173: =+IF(Analisis!$C$22<>"",Bruto!AF37,"") ->  | F173: =+IF(Analisis!$C$22<>"",Bruto!AG37,"") ->  | G173: =+IF(Analisis!$C$22<>"",Bruto!AH37,"") ->  | J173: =+N169 -> 0 | Q173: =SUM(K173:O173)-N176 -> 0 | T173: 1 | U173: 0 | V173: 0 | W173: 0 | X173: 0 | Z173: =+IF(C170="","",C170:G174-W180*T173:X177) -> 
B174: =+G169 -> 0 | C174: =+IF(Analisis!$C$22<>"",Bruto!AD38,"") ->  | D174: =+IF(Analisis!$C$22<>"",Bruto!AE38,"") ->  | E174: =+IF(Analisis!$C$22<>"",Bruto!AF38,"") ->  | F174: =+IF(Analisis!$C$22<>"",Bruto!AG38,"") ->  | G174: =+IF(Analisis!$C$22<>"",Bruto!AH38,"") ->  | J174: =+O169 -> 0 | Q174: =SUM(K174:O174)-O176 -> 0 | T174: 0 | U174: 1 | V174: 0 | W174: 0 | X174: 0
T175: 0 | U175: 0 | V175: 1 | W175: 0 | X175: 0
C176: =SUM(C170:C174) -> 0 | D176: =SUM(D170:D174) -> 0 | E176: 0 | F176: 0 | G176: 0 | K176: =+IF(K170=1,1,0) -> 0 | L176: =+IF(L171=1,1,0) -> 0 | M176: =+IF(M172=1,1,0) -> 0 | N176: =+IF(N173=1,1,0) -> 0 | O176: =+IF(O174=1,1,0) -> 0 | P176: =SUM(K176:O176) -> 0 | T176: 0 | U176: 0 | V176: 0 | W176: 1 | X176: 0
K177: =+R170 ->  | L177: =+R171 ->  | M177: =+R172 ->  | N177: =+R173 ->  | O177: =+R174 ->  | T177: 0 | U177: 0 | V177: 0 | W177: 0 | X177: 1
B178: Metodo Exacto
C180: =+Analisis!$E$18 -> Munchen | D180: =+Analisis!$E$19 -> London | E180: =+Analisis!$E$20 -> Praga | F180: =+Analisis!$E$21 -> 0 | G180: =+Analisis!$E$22 -> 0 | M180: =+Analisis!$E$18 -> Munchen | N180: =+Analisis!$E$19 -> London | O180: =+Analisis!$E$20 -> Praga | P180: =+Analisis!$E$21 -> 0 | Q180: =+Analisis!$E$22 -> 0 | V180: λ | W180: 1.999999724 | Z180: 2 | AA180: deter | AB180: =IF($C$77="","",MDETERM(Z173:AA174)) -> 
B181: =+C180 -> Munchen | C181: =+IF(C170="","",MMULT(C170:G174,C170:G174)) ->  | I181: =+IF(OR(C181="",C181=0),"",SUM(C181:G181)) ->  | J181: =+IF(I181="","",I181/$I$186) ->  | L181: =+M180 -> Munchen | M181: =+IF(C181="","",MMULT(C181:G185,C181:G185)) ->  | S181: =+IF(OR(M181="",M181=0),"",SUM(M181:Q181)) ->  | T181: =+IF(S181="","",S181/$S$186) ->  | V181: deter | W181: =IF(C170="","",VLOOKUP(U171,Z180:AB183,3,FALSE)) ->  | Z181: 3 | AA181: deter | AB181: =IF($C$77="","",MDETERM(Z173:AB175)) -> 
B182: =+D180 -> London | J182: =+IF(I182="","",I182/$I$186) ->  | L182: =+N180 -> London | T182: =+IF(S182="","",S182/$S$186) ->  | Z182: 4 | AA182: deter | AB182: =IF($C$77="","",MDETERM(Z173:AC176)) -> 
B183: =+E180 -> Praga | L183: =+O180 -> Praga | Z183: 5 | AA183: deter | AB183: =IF($C$77="","",MDETERM(Z173:AD177)) -> 
B184: =+F180 -> 0 | L184: =+P180 -> 0
B185: =+G180 -> 0 | L185: =+Q180 -> 0
I186: =SUM(I181:I185) -> 0 | S186: =SUM(S181:S185) -> 0 | V186: λ | W186: n | X186: IC | Y186: CR
V187: =+W180 -> 1.999999724 | W187: =+COUNTIF(Z173:Z177,"<>0") -> 5 | X187: =+(V187-W187)/(W187-1) -> -0.7500000691 | Y187: =+X187/+HLOOKUP(W187,Bruto!D1:M2,2,FALSE) -> -0.6756757379 | AA187: =+IF(Y187<0,"",IF(Y188>0.1,"La matriz es inconsistente, se debe volver a evaluar","La matriz es consistente")) -> 
C188: =+Analisis!$E$18 -> Munchen | D188: =+Analisis!$E$19 -> London | E188: =+Analisis!$E$20 -> Praga | F188: =+Analisis!$E$21 -> 0 | G188: =+Analisis!$E$22 -> 0 | M188: =+Analisis!$E$18 -> Munchen | N188: =+Analisis!$E$19 -> London | O188: =+Analisis!$E$20 -> Praga | P188: =+Analisis!$E$21 -> 0 | Q188: =+Analisis!$E$22 -> 0 | Y188: =+IF(Y187<0,0,Y187) -> 0
B189: =+C188 -> Munchen | C189: =+IF(M181="","",MMULT(M181:Q185,M181:Q185)) ->  | I189: =+IF(OR(C189="",C189=0),"",SUM(C189:G189)) ->  | J189: =+IF(I189="","",I189/$I$194) ->  | L189: =+M188 -> Munchen | M189: =+IF(C189="","",MMULT(C189:G193,C189:G193)) ->  | S189: =+IF(OR(M189="",M189=0),"",SUM(M189:Q189)) ->  | T189: =+IF(S189="","",S189/$S$194) -> 
B190: =+D188 -> London | J190: =+IF(I190="","",I190/$I$194) ->  | L190: =+N188 -> London | T190: =+IF(S190="","",S190/$S$194) -> 
B191: =+E188 -> Praga | L191: =+O188 -> Praga
B192: =+F188 -> 0 | L192: =+P188 -> 0
B193: =+G188 -> 0 | L193: =+Q188 -> 0
I194: =SUM(I189:I193) -> 0 | S194: =SUM(S189:S193) -> 0
B196: Para | C196: =H8 -> 0
B198: Metodo Aproximado
C200: =+Analisis!$E$18 -> Munchen | D200: =+Analisis!$E$19 -> London | E200: =+Analisis!$E$20 -> Praga | F200: =+Analisis!$E$21 -> 0 | G200: =+Analisis!$E$22 -> 0 | K200: =+Analisis!$E$18 -> Munchen | L200: =+Analisis!$E$19 -> London | M200: =+Analisis!$E$20 -> Praga | N200: =+Analisis!$E$21 -> 0 | O200: =+Analisis!$E$22 -> 0
B201: =+C200 -> Munchen | C201: =+IF(Analisis!$C$23<>"",Bruto!AI39,"") ->  | D201: =+IF(Analisis!$C$23<>"",Bruto!AJ39,"") ->  | E201: =+IF(Analisis!$C$23<>"",Bruto!AK39,"") ->  | F201: =+IF(Analisis!$C$23<>"",Bruto!AL39,"") ->  | G201: =+IF(Analisis!$C$23<>"",Bruto!AM39,"") ->  | J201: =+K200 -> Munchen | K201: =+IF(C201="","",C201/C$207) ->  | L201: =+IF(D201="","",D201/D$207) ->  | Q201: =SUM(K201:O201)-K207 -> 0 | R201: =IF(Q201=0,"",Q201/(5-$P$114)) ->  | T201: λ | U201: n | V201: IC | W201: CR
B202: =+D200 -> London | C202: =+IF(Analisis!$C$23<>"",Bruto!AI40,"") ->  | D202: =+IF(Analisis!$C$23<>"",Bruto!AJ40,"") ->  | E202: =+IF(Analisis!$C$23<>"",Bruto!AK40,"") ->  | F202: =+IF(Analisis!$C$23<>"",Bruto!AL40,"") ->  | G202: =+IF(Analisis!$C$23<>"",Bruto!AM40,"") ->  | J202: =+L200 -> London | K202: =+IF(C202="","",C202/C$207) ->  | Q202: =SUM(K202:O202)-L207 -> 0 | R202: =IF(Q202=0,"",Q202/(5-$P$114)) ->  | T202: =+SUMPRODUCT(C207:G207,K208:O208) -> 0 | U202: =+COUNTIF(C201:G201,">0") -> 0 | V202: =+(T202-U202)/(U202-1) -> 0 | W202: =+IF(V202=0,0,+V202/HLOOKUP(U202,Bruto!D1:M2,2,FALSE)) -> 0 | Y202: =+IF(AA218="","",IF(W203>0.1,"La matriz es inconsistente, se debe volver a evaluar","La matriz es consistente")) -> 
B203: =+E200 -> Praga | C203: =+IF(Analisis!$C$23<>"",Bruto!AI41,"") ->  | D203: =+IF(Analisis!$C$23<>"",Bruto!AJ41,"") ->  | E203: =+IF(Analisis!$C$23<>"",Bruto!AK41,"") ->  | F203: =+IF(Analisis!$C$23<>"",Bruto!AL41,"") ->  | G203: =+IF(Analisis!$C$23<>"",Bruto!AM41,"") ->  | J203: =+M200 -> Praga | Q203: =SUM(K203:O203)-M207 -> 0 | W203: =+IF(W202<0,0,W202) -> 0
B204: =+F200 -> 0 | C204: =+IF(Analisis!$C$23<>"",Bruto!AI42,"") ->  | D204: =+IF(Analisis!$C$23<>"",Bruto!AJ42,"") ->  | E204: =+IF(Analisis!$C$23<>"",Bruto!AK42,"") ->  | F204: =+IF(Analisis!$C$23<>"",Bruto!AL42,"") ->  | G204: =+IF(Analisis!$C$23<>"",Bruto!AM42,"") ->  | J204: =+N200 -> 0 | Q204: =SUM(K204:O204)-N207 -> 0 | T204: 1 | U204: 0 | V204: 0 | W204: 0 | X204: 0 | Z204: =+IF(C201="","",C201:G205-W211*T204:X208) -> 
B205: =+G200 -> 0 | C205: =+IF(Analisis!$C$23<>"",Bruto!AI43,"") ->  | D205: =+IF(Analisis!$C$23<>"",Bruto!AJ43,"") ->  | E205: =+IF(Analisis!$C$23<>"",Bruto!AK43,"") ->  | F205: =+IF(Analisis!$C$23<>"",Bruto!AL43,"") ->  | G205: =+IF(Analisis!$C$23<>"",Bruto!AM43,"") ->  | J205: =+O200 -> 0 | Q205: =SUM(K205:O205)-O207 -> 0 | T205: 0 | U205: 1 | V205: 0 | W205: 0 | X205: 0
T206: 0 | U206: 0 | V206: 1 | W206: 0 | X206: 0
C207: =SUM(C201:C205) -> 0 | D207: =SUM(D201:D205) -> 0 | E207: 0 | F207: 0 | G207: 0 | K207: =+IF(K201=1,1,0) -> 0 | L207: =+IF(L202=1,1,0) -> 0 | M207: =+IF(M203=1,1,0) -> 0 | N207: =+IF(N204=1,1,0) -> 0 | O207: =+IF(O205=1,1,0) -> 0 | P207: =SUM(K207:O207) -> 0 | T207: 0 | U207: 0 | V207: 0 | W207: 1 | X207: 0
K208: =+R201 ->  | L208: =+R202 ->  | M208: =+R203 ->  | N208: =+R204 ->  | O208: =+R205 ->  | T208: 0 | U208: 0 | V208: 0 | W208: 0 | X208: 1
B209: Metodo Exacto
C211: =+Analisis!$E$18 -> Munchen | D211: =+Analisis!$E$19 -> London | E211: =+Analisis!$E$20 -> Praga | F211: =+Analisis!$E$21 -> 0 | G211: =+Analisis!$E$22 -> 0 | M211: =+Analisis!$E$18 -> Munchen | N211: =+Analisis!$E$19 -> London | O211: =+Analisis!$E$20 -> Praga | P211: =+Analisis!$E$21 -> 0 | Q211: =+Analisis!$E$22 -> 0 | V211: λ | W211: 1.999999724 | Z211: 2 | AA211: deter | AB211: =IF($C$77="","",MDETERM(Z204:AA205)) -> 
B212: =+C211 -> Munchen | C212: =+IF(C201="","",MMULT(C201:G205,C201:G205)) ->  | I212: =+IF(OR(C212="",C212=0),"",SUM(C212:G212)) ->  | J212: =+IF(I212="","",I212/$I$217) ->  | L212: =+M211 -> Munchen | M212: =+IF(C212="","",MMULT(C212:G216,C212:G216)) ->  | S212: =+IF(OR(M212="",M212=0),"",SUM(M212:Q212)) ->  | T212: =+IF(S212="","",S212/$S$217) ->  | V212: deter | W212: =IF(C201="","",VLOOKUP(U202,Z211:AB214,3,FALSE)) ->  | Z212: 3 | AA212: deter | AB212: =IF($C$77="","",MDETERM(Z204:AB206)) -> 
B213: =+D211 -> London | J213: =+IF(I213="","",I213/$I$217) ->  | L213: =+N211 -> London | T213: =+IF(S213="","",S213/$S$217) ->  | Z213: 4 | AA213: deter | AB213: =IF($C$77="","",MDETERM(Z204:AC207)) -> 
B214: =+E211 -> Praga | L214: =+O211 -> Praga | Z214: 5 | AA214: deter | AB214: =IF($C$77="","",MDETERM(Z204:AD208)) -> 
B215: =+F211 -> 0 | L215: =+P211 -> 0
B216: =+G211 -> 0 | L216: =+Q211 -> 0
I217: =SUM(I212:I216) -> 0 | S217: =SUM(S212:S216) -> 0 | V217: λ | W217: n | X217: IC | Y217: CR
V218: =+W211 -> 1.999999724 | W218: =+COUNTIF(Z204:Z208,"<>0") -> 5 | X218: =+(V218-W218)/(W218-1) -> -0.7500000691 | Y218: =+X218/+HLOOKUP(W218,Bruto!D1:M2,2,FALSE) -> -0.6756757379 | AA218: =+IF(Y218<0,"",IF(Y219>0.1,"La matriz es inconsistente, se debe volver a evaluar","La matriz es consistente")) -> 
C219: =+Analisis!$E$18 -> Munchen | D219: =+Analisis!$E$19 -> London | E219: =+Analisis!$E$20 -> Praga | F219: =+Analisis!$E$21 -> 0 | G219: =+Analisis!$E$22 -> 0 | M219: =+Analisis!$E$18 -> Munchen | N219: =+Analisis!$E$19 -> London | O219: =+Analisis!$E$20 -> Praga | P219: =+Analisis!$E$21 -> 0 | Q219: =+Analisis!$E$22 -> 0 | Y219: =+IF(Y218<0,0,Y218) -> 0
B220: =+C219 -> Munchen | C220: =+IF(M212="","",MMULT(M212:Q216,M212:Q216)) ->  | I220: =+IF(OR(C220="",C220=0),"",SUM(C220:G220)) ->  | J220: =+IF(I220="","",I220/$I$225) ->  | L220: =+M219 -> Munchen | M220: =+IF(C220="","",MMULT(C220:G224,C220:G224)) ->  | S220: =+IF(OR(M220="",M220=0),"",SUM(M220:Q220)) ->  | T220: =+IF(S220="","",S220/$S$225) -> 
B221: =+D219 -> London | J221: =+IF(I221="","",I221/$I$225) ->  | L221: =+N219 -> London | T221: =+IF(S221="","",S221/$S$225) -> 
B222: =+E219 -> Praga | L222: =+O219 -> Praga
B223: =+F219 -> 0 | L223: =+P219 -> 0
B224: =+G219 -> 0 | L224: =+Q219 -> 0
I225: =SUM(I220:I224) -> 0 | S225: =SUM(S220:S224) -> 0
